Workbook

Sheet Male
A1: Food Group | B1: Cost | C1: Solution | D1: Cur.Consumption | E1: TFP | J1: Calcium | K1: Cholesterol | L1: Copper | M1: Energy | N1: Fiber | O1: Folate | P1: Iron | Q1: Magnesium | R1: Niacin | S1: Phosphorus | T1: Potassium | U1: Riboflavin | V1: Sodium | W1: Thiamin | X1: Vitamin B12 | Y1: Vitamin B6 | Z1: Vitamin C | AA1: Vitamin E | AB1: Vitamin A | AC1: Zinc | AD1: Calories from linoleic acid | AE1: Calories from linolenic acid | AF1: Calories from protein | AG1: Calories from carbohydrates | AH1: calories from fat | AI1: Calories from saturated fat | AJ1: Servings of grains | AK1: Servings of vegetables | AL1: Servings of fruit | AM1: Servings of dairy | AN1: Servings of meat/protein | AO1: Servings of fats and oils | AP1: SOFASUG_tot_kcal | AQ1: Servings of whole grains | AR1: Servings of dark green vegetables | AS1: Servings of orange vegetables | AT1: Servings of legumes (vegetables) | AU1: V_STARCY_py | AV1: V_OTHER_py | AW1: Servings of whole fruit
A2: Milk | B2: 0.1162 | C2: 0 | D2: 0.8955 | E2: 0.0068 | J2: 112.2304 | K2: 11.6225 | L2: 0.0112 | M2: 70.1136 | N2: 0.0032 | O2: 5.0504 | P2: 0.0429 | Q2: 9.9512 | R2: 0.1098 | S2: 93.1717 | T2: 148.1604 | U2: 0.1781 | V2: 45.8517 | W2: 0.0396 | X2: 0.4288 | Y2: 0.0393 | Z2: 0.0532 | AA2: 0.0859 | AB2: 33.4926 | AC2: 0.4024 | AD2: 1.1927 | AE2: 0.6953 | AF2: 12.9883 | AG2: 20.5465 | AH2: 37.0888 | AI2: 22.0016 | AJ2: 0.0003 | AK2: 0.0003 | AL2: 0.0002 | AM2: 0.3876 | AN2: 0 | AO2: 0.0032 | AP2: 33.1552 | AQ2: 0 | AR2: 0 | AS2: 0 | AT2: 0 | AU2: 0 | AV2: 0.0003 | AW2: 0.0002
A3: Low fat milk | B3: 0.0716 | C3: 0 | D3: 1.2654 | E3: 7.4388 | J3: 120.6931 | K3: 6.1955 | L3: 0.0123 | M3: 47.7256 | N3: 0.0017 | O3: 5.1965 | P3: 0.0327 | Q3: 11.1977 | R3: 0.0912 | S3: 96.825 | T3: 153.6514 | U3: 0.1801 | V3: 42.9963 | W3: 0.0368 | X3: 0.469 | Y3: 0.04 | Z3: 0.1888 | AA3: 0.0233 | AB3: 53.6463 | AC3: 0.4417 | AD3: 0.3874 | AE3: 0.0773 | AF3: 13.5277 | AG3: 21.359 | AH3: 12.7238 | AI3: 8.2258 | AJ3: 0 | AK3: 0 | AL3: 0.0015 | AM3: 0.4096 | AN3: 0 | AO3: 0 | AP3: 12.0719 | AQ3: 0 | AR3: 0 | AS3: 0 | AT3: 0 | AU3: 0 | AV3: 0 | AW3: 0.0015
A4: Cheese | B4: 0.7203 | C4: 0.4428025188 | D4: 0.0969 | E4: 0.0005 | J4: 572.3382 | K4: 70.9176 | L4: 0.052 | M4: 307.1513 | N4: 0.0273 | O4: 12.1394 | P4: 0.502 | Q4: 26.0082 | R4: 0.1631 | S4: 468.7814 | T4: 172.9857 | U4: 0.3899 | V4: 916.1922 | W4: 0.0507 | X4: 1.0942 | Y4: 0.0774 | Z4: 0.0892 | AA4: 0.2328 | AB4: 182.9759 | AC4: 2.7631 | AD4: 5.0096 | AE4: 1.9392 | AF4: 83.6314 | AG4: 19.9061 | AH4: 203.3664 | AI4: 125.3811 | AJ4: 0.0234 | AK4: 0.0023 | AL4: 0.0002 | AM4: 1.8263 | AN4: 0.0048 | AO4: 0.0014 | AP4: 169.3818 | AQ4: 0 | AR4: 0 | AS4: 0 | AT4: 0 | AU4: 0 | AV4: 0.0023 | AW4: 0.0002
A5: Milk-based desserts | B5: 0.2592 | C5: 0 | D5: 0.2672 | E5: 0.0013 | G5: Cost | J5: 115.7822 | K5: 20.8786 | L5: 0.0614 | M5: 131.4621 | N5: 0.5792 | O5: 8.9646 | P5: 0.3279 | Q5: 15.716 | R5: 0.322 | S5: 98.881 | T5: 174.2701 | U5: 0.1904 | V5: 64.5188 | W5: 0.0503 | X5: 0.3656 | Y5: 0.0631 | Z5: 1.4684 | AA5: 0.2454 | AB5: 72.1126 | AC5: 0.59 | AD5: 2.1829 | AE5: 0.7913 | AF5: 13.4574 | AG5: 68.4917 | AH5: 52.6878 | AI5: 31.3595 | AJ5: 0.073 | AK5: 0.0001 | AL5: 0.0017 | AM5: 0.2988 | AN5: 0.0172 | AO5: 0.1578 | AP5: 82.9507 | AQ5: 0.0017 | AR5: 0 | AS5: 0 | AT5: 0 | AU5: 0.0001 | AV5: 0 | AW5: 0.0017
A6: Low fat milk-based desserts | B6: 0.1743 | C6: 0 | D6: 0.1809 | E6: 0.0017 | G6: =SUMPRODUCT(B2:B59,C2:C59) -> 5.299267584 | J6: 107.327 | K6: 5.0786 | L6: 0.1186 | M6: 92.5672 | N6: 0.6289 | O6: 15.8981 | P6: 0.8132 | Q6: 23.1862 | R6: 0.7716 | S6: 101.274 | T6: 184.1635 | U6: 0.1761 | V6: 51.5694 | W6: 0.0896 | X6: 0.4009 | Y6: 0.0948 | Z6: 2.6533 | AA6: 0.5649 | AB6: 69.1878 | AC6: 0.8136 | AD6: 1.7106 | AE6: 0.2405 | AF6: 14.7206 | AG6: 63.3205 | AH6: 15.7893 | AI6: 8.1903 | AJ6: 0.0545 | AK6: 0 | AL6: 0.0125 | AM6: 0.3366 | AN6: 0.0207 | AO6: 0.3059 | AP6: 40.5543 | AQ6: 0 | AR6: 0 | AS6: 0 | AT6: 0 | AU6: 0 | AV6: 0 | AW6: 0.0125
A7: Low cost red meat | B7: 0.5069 | C7: 0 | D7: 0.0958 | E7: 0.0023 | J7: 24.0837 | K7: 89.1727 | L7: 0.0795 | M7: 277.6817 | N7: 0.0064 | O7: 9.7468 | P7: 2.3793 | Q7: 19.5847 | R7: 4.6971 | S7: 187.1774 | T7: 288.1673 | U7: 0.1796 | V7: 101.6397 | W7: 0.0642 | X7: 2.6354 | Y7: 0.3408 | Z7: 0.0244 | AA7: 0.4284 | AB7: 0.0328 | AC7: 5.9645 | AD7: 4.1191 | AE7: 0.7255 | AF7: 100.4131 | AG7: 0.4328 | AH7: 170.0344 | AI7: 66.0955 | AJ7: 0.0067 | AK7: 0 | AL7: 0 | AM7: 0 | AN7: 3.1412 | AO7: 0.001 | AP7: 81.1779 | AQ7: 0 | AR7: 0 | AS7: 0 | AT7: 0 | AU7: 0 | AV7: 0 | AW7: 0
A8: Regular cost red meat | B8: 0.8353 | C8: 0 | D8: 0.0692 | E8: 0.0005 | J8: 17.3745 | K8: 88.071 | L8: 0.1159 | M8: 322.9094 | N8: 0.1306 | O8: 12.2424 | P8: 2.1785 | Q8: 26.3678 | R8: 5.0938 | S8: 258.6983 | T8: 383.8068 | U8: 0.251 | V8: 518.8183 | W8: 0.2909 | X8: 1.8194 | Y8: 0.3419 | Z8: 0.1798 | AA8: 0.2587 | AB8: 3.257 | AC8: 4.3559 | AD8: 14.0795 | AE8: 1.5814 | AF8: 117.2095 | AG8: 7.2168 | AH8: 190.3331 | AI8: 69.4073 | AJ8: 0.0805 | AK8: 0.0002 | AL8: 0 | AM8: 0.0016 | AN8: 2.9136 | AO8: 0.299 | AP8: 105.8551 | AQ8: 0.0015 | AR8: 0 | AS8: 0 | AT8: 0 | AU8: 0 | AV8: 0.0002 | AW8: 0
A9: Low cost lean red meat | B9: 0.3993 | C9: 0 | D9: 0.0138 | E9: 0.2945 | J9: 18.0753 | K9: 74.6431 | L9: 0.3359 | M9: 177.4522 | N9: 0.14 | O9: 11.0227 | P9: 1.7841 | Q9: 21.3961 | R9: 5.5925 | S9: 232.4955 | T9: 339.3808 | U9: 0.3591 | V9: 890.9991 | W9: 0.5854 | X9: 2.0208 | Y9: 0.3799 | Z9: 0.1731 | AA9: 0.3997 | AB9: 110.394 | AC9: 2.839 | AD9: 9.4354 | AE9: 1.3158 | AF9: 94.4393 | AG9: 9.1342 | AH9: 67.562 | AI9: 21.4389 | AJ9: 0.1482 | AK9: 0.0003 | AL9: 0 | AM9: 0.0002 | AN9: 3.3167 | AO9: 0.7632 | AP9: 6.073 | AQ9: 0 | AR9: 0 | AS9: 0 | AT9: 0 | AU9: 0 | AV9: 0.0003 | AW9: 0
A10: Regular cost lean red meat | B10: 1.2257 | C10: 0 | D10: 0.1985 | E10: 0.0027 | J10: 13.2267 | K10: 84.3457 | L10: 0.1138 | M10: 212.9754 | N10: 0.0436 | O10: 9.2999 | P10: 2.43 | Q10: 28.1463 | R10: 5.15 | S10: 237.8619 | T10: 407.535 | U10: 0.2883 | V10: 76.709 | W10: 0.3389 | X10: 2.1103 | Y10: 0.4505 | Z10: 0.1747 | AA10: 0.2178 | AB10: 1.1219 | AC10: 4.9137 | AD10: 6.3086 | AE10: 0.5453 | AF10: 118.0961 | AG10: 2.9773 | AH10: 83.6758 | AI10: 30.1982 | AJ10: 0.0547 | AK10: 0 | AL10: 0 | AM10: 0.0005 | AN10: 3.4221 | AO10: 0.2807 | AP10: 12.3772 | AQ10: 0 | AR10: 0 | AS10: 0 | AT10: 0 | AU10: 0 | AV10: 0 | AW10: 0
A11: Low cost fish | B11: 0.571 | C11: 4.625407479e-08 | D11: 0.0195 | E11: 0.0022 | J11: 53.4446 | K11: 81.5141 | L11: 0.2671 | M11: 215.3945 | N11: 0.4911 | O11: 26.1411 | P11: 1.0253 | Q11: 31.3632 | R11: 2.4961 | S11: 203.0637 | T11: 284.7383 | U11: 0.1684 | V11: 209.9722 | W11: 0.2121 | X11: 2.307 | Y11: 0.152 | Z11: 0.6834 | AA11: 1.0698 | AB11: 32.3709 | AC11: 1.9245 | AD11: 24.4115 | AE11: 2.3029 | AF11: 63.8021 | AG11: 38.5775 | AH11: 109.0903 | AI11: 24.5519 | AJ11: 0.6325 | AK11: 0.0026 | AL11: 0.0005 | AM11: 0.0408 | AN11: 2.3592 | AO11: 0.3567 | AP11: 60.9452 | AQ11: 0 | AR11: 0.0001 | AS11: 0 | AT11: 0 | AU11: 0 | AV11: 0.0024 | AW11: 0.0005
A12: Regular cost fish | B12: 1.264 | C12: 0 | D12: 0.1123 | E12: 0.0015 | J12: 49.4897 | K12: 93.3441 | L12: 0.1257 | M12: 211.9115 | N12: 0.3161 | O12: 21.4527 | P12: 1.5057 | Q12: 35.6351 | R12: 3.7737 | S12: 258.808 | T12: 339.0319 | U12: 0.1287 | V12: 135.5937 | W12: 0.178 | X12: 1.9917 | Y12: 0.2202 | Z12: 1.6195 | AA12: 1.2239 | AB12: 45.5877 | AC12: 1.0215 | AD12: 25.1313 | AE12: 2.7868 | AF12: 81.9514 | AG12: 26.2712 | AH12: 99.0356 | AI12: 19.8823 | AJ12: 0.4767 | AK12: 0 | AL12: 0.0053 | AM12: 0.0066 | AN12: 2.7932 | AO12: 0.1958 | AP12: 54.5076 | AQ12: 0 | AR12: 0 | AS12: 0 | AT12: 0 | AU12: 0 | AV12: 0 | AW12: 0.0053
A13: Low cost lean fish | B13: 0.4583 | C13: 0.1734690007 | D13: 0.0502 | E13: 0.2959 | J13: 37.7452 | K13: 19.3773 | L13: 0.0642 | M13: 81.6539 | N13: 0.3163 | O13: 8.1019 | P13: 0.9318 | Q13: 17.5009 | R13: 4.7686 | S13: 106.7091 | T13: 187.9012 | U13: 0.0767 | V13: 313.3051 | W13: 0.0346 | X13: 2.7059 | Y13: 0.1544 | Z13: 1.5832 | AA13: 0.3701 | AB13: 20.4546 | AC13: 0.4818 | AD13: 2.8652 | AE13: 0.2708 | AF13: 47.3239 | AG13: 13.2731 | AH13: 18.6661 | AI13: 5.7383 | AJ13: 0.1087 | AK13: 0.1057 | AL13: 0 | AM13: 0.0295 | AN13: 1.5525 | AO13: 0.3553 | AP13: 7.1723 | AQ13: 0 | AR13: 0.0075 | AS13: 0 | AT13: 0 | AU13: 0.0512 | AV13: 0.0472 | AW13: 0
A14: Regular cost lean fish | B14: 1.468 | C14: 0 | D14: 0.031 | E14: 0.0004 | J14: 72.2908 | K14: 119.6683 | L14: 0.3232 | M14: 130.6316 | N14: 0.0037 | O14: 16.7908 | P14: 1.702 | Q14: 42.469 | R14: 4.4968 | S14: 248.5298 | T14: 306.155 | U14: 0.0996 | V14: 422.9651 | W14: 0.0734 | X14: 2.7232 | Y14: 0.1764 | Z14: 1.3424 | AA14: 1.4276 | AB14: 35.6848 | AC14: 1.8099 | AD14: 2.5628 | AE14: 0.4321 | AF14: 92.4148 | AG14: 1.8309 | AH14: 30.3453 | AI14: 6.0189 | AJ14: 0.0042 | AK14: 0 | AL14: 0.0019 | AM14: 0 | AN14: 3.4655 | AO14: 0.211 | AP14: 2.584 | AQ14: 0 | AR14: 0 | AS14: 0 | AT14: 0 | AU14: 0 | AV14: 0 | AW14: 0.0019
A15: Low cost poultry | B15: 0.3934 | C15: 7.794242205e-08 | D15: 0.0861 | E15: 0.0013 | J15: 17.3969 | K15: 99.0715 | L15: 0.0904 | M15: 261.7297 | N15: 0.2362 | O15: 32.8638 | P15: 1.6879 | Q15: 21.1238 | R15: 5.6296 | S15: 160.1089 | T15: 205.6844 | U15: 0.2494 | V15: 78.1879 | W15: 0.1131 | X15: 0.5101 | Y15: 0.2809 | Z15: 0.2639 | AA15: 0.5319 | AB15: 77.5954 | AC15: 2.255 | AD15: 33.8417 | AE15: 2.4896 | AF15: 91.6275 | AG15: 27.6155 | AH15: 136.4729 | AI15: 32.2643 | AJ15: 0.5527 | AK15: 0 | AL15: 0 | AM15: 0.006 | AN15: 2.6658 | AO15: 0 | AP15: 63.6891 | AQ15: 0 | AR15: 0 | AS15: 0 | AT15: 0 | AU15: 0 | AV15: 0 | AW15: 0
A16: Regular cost poultry | B16: 0.6512 | C16: 0 | D16: 0.165 | E16: 0.0017 | J16: 17.169 | K16: 85.0203 | L16: 0.0732 | M16: 265.8504 | N16: 0.1953 | O16: 18.2635 | P16: 1.4034 | Q16: 21.9856 | R16: 7.647 | S16: 167.202 | T16: 207.8478 | U16: 0.1731 | V16: 88.4931 | W16: 0.0996 | X16: 0.2818 | Y16: 0.3904 | Z16: 0.0092 | AA16: 0.4925 | AB16: 33.673 | AC16: 1.6643 | AD16: 31.9977 | AE16: 2.3403 | AF16: 99.0222 | AG16: 22.5105 | AH16: 138.1526 | AI16: 33.8245 | AJ16: 0.4499 | AK16: 0 | AL16: 0.0001 | AM16: 0.0048 | AN16: 2.7356 | AO16: 0.0092 | AP16: 70.6024 | AQ16: 0 | AR16: 0 | AS16: 0 | AT16: 0 | AU16: 0 | AV16: 0 | AW16: 0.0001
A17: Low cost lean poultry | B17: 0.4145 | C17: 0 | D17: 0.0294 | E17: 0.9266 | J17: 15.6286 | K17: 135.6944 | L17: 0.1155 | M17: 161.0636 | N17: 0.2054 | O17: 32.3382 | P17: 2.0058 | Q17: 18.9787 | R17: 4.8115 | S17: 171.1657 | T17: 243.0852 | U17: 0.2695 | V17: 117.8785 | W17: 0.0684 | X17: 1.0799 | Y17: 0.304 | Z17: 2.47 | AA17: 0.2923 | AB17: 188.1466 | AC17: 2.7944 | AD17: 10.8328 | AE17: 0.5293 | AF17: 92.6293 | AG17: 6.4751 | AH17: 57.0522 | AI17: 16.0251 | AJ17: 0.0002 | AK17: 0.1041 | AL17: 0 | AM17: 0 | AN17: 2.9124 | AO17: 0 | AP17: 0.8109 | AQ17: 0 | AR17: 0 | AS17: 0.0131 | AT17: 0 | AU17: 0.0779 | AV17: 0.0131 | AW17: 0
A18: Regular cost lean poultry | B18: 0.8974 | C18: 0 | D18: 0.1505 | E18: 0.0025 | J18: 14.6358 | K18: 75.6103 | L18: 0.0631 | M18: 227.7658 | N18: 0 | O18: 19.3711 | P18: 1.0955 | Q18: 24.2924 | R18: 8.2116 | S18: 222.906 | T18: 256.6082 | U18: 0.1519 | V18: 231.9552 | W18: 0.0806 | X18: 0.3024 | Y18: 0.3877 | Z18: 0 | AA18: 0.6583 | AB18: 10.8212 | AC18: 1.627 | AD18: 16.2394 | AE18: 1.0699 | AF18: 97.6919 | AG18: 21.9911 | AH18: 102.9849 | AI18: 25.0005 | AJ18: 0.4212 | AK18: 0 | AL18: 0 | AM18: 0 | AN18: 2.978 | AO18: 6.0911 | AP18: 5.6097 | AQ18: 0 | AR18: 0 | AS18: 0 | AT18: 0 | AU18: 0 | AV18: 0 | AW18: 0
A19: Lunch meat | B19: 0.4796 | C19: 5.453926354e-08 | D19: 0.2205 | E19: 0.0009 | J19: 24.5786 | K19: 66.2366 | L19: 0.1168 | M19: 325.6126 | N19: 0.3196 | O19: 4.3757 | P19: 1.4886 | Q19: 14.6202 | R19: 3.5071 | S19: 144.8117 | T19: 217.7679 | U19: 0.1899 | V19: 1016.0999 | W19: 0.2107 | X19: 1.5936 | Y19: 0.2032 | Z19: 0.6754 | AA19: 0.2945 | AB19: 41.0744 | AC19: 2.4235 | AD19: 18.9721 | AE19: 1.7639 | AF19: 58.7055 | AG19: 11.0183 | AH19: 252.2971 | AI19: 92.8475 | AJ19: 0.0001 | AK19: 0 | AL19: 0 | AM19: 0.0014 | AN19: 2.7979 | AO19: 0.1745 | AP19: 167.7553 | AQ19: 0 | AR19: 0 | AS19: 0 | AT19: 0 | AU19: 0 | AV19: 0 | AW19: 0
A20: Low fat lunch meat | B20: 0.8253 | C20: 0 | D20: 0.0909 | E20: 0.0007 | J20: 21.2759 | K20: 53.8556 | L20: 0.0808 | M20: 166.5285 | N20: 0.0441 | O20: 4.7461 | P20: 1.2619 | Q20: 17.6215 | R20: 4.5975 | S20: 195.9795 | T20: 278.4997 | U20: 0.2114 | V20: 1059.4191 | W20: 0.4635 | X20: 0.6684 | Y20: 0.3077 | Z20: 0.2951 | AA20: 0.2356 | AB20: 5.2069 | AC20: 2.0045 | AD20: 10.1961 | AE20: 0.9072 | AF20: 72.6507 | AG20: 12.0374 | AH20: 78.0892 | AI20: 24.9336 | AJ20: 0 | AK20: 0 | AL20: 0 | AM20: 0 | AN20: 3.4751 | AO20: 0.001 | AP20: 14.8746 | AQ20: 0 | AR20: 0 | AS20: 0 | AT20: 0 | AU20: 0 | AV20: 0 | AW20: 0
A21: Eggs | B21: 0.1898 | C21: 0 | D21: 0.2661 | E21: 0.006 | J21: 72.7591 | K21: 337.958 | L21: 0.0795 | M21: 177.9579 | N21: 0.0646 | O21: 32.1475 | P21: 1.5227 | Q21: 12.6724 | R21: 0.3793 | S21: 185.1287 | T21: 153.2592 | U21: 0.4145 | V21: 240.0405 | W21: 0.0836 | X21: 0.9718 | Y21: 0.1301 | Z21: 0.359 | AA21: 1.1156 | AB21: 137.844 | AC21: 1.1161 | AD21: 20.0706 | AE21: 1.3143 | AF21: 47.6151 | AG21: 10.4129 | AH21: 116.9229 | AI21: 36.1512 | AJ21: 0.0632 | AK21: 0.012 | AL21: 0.0002 | AM21: 0.0968 | AN21: 1.7279 | AO21: 0.589 | AP21: 60.3887 | AQ21: 0 | AR21: 0 | AS21: 0 | AT21: 0 | AU21: 0.003 | AV21: 0.009 | AW21: 0.0002
A22: Meat mixtures | B22: 0.4685 | C22: 0 | D22: 0.4627 | E22: 0.0041 | J22: 72.6623 | K22: 41.0489 | L22: 0.1049 | M22: 226.012 | N22: 0.9037 | O22: 46.2964 | P22: 1.7411 | Q22: 18.8141 | R22: 3.3524 | S22: 129.955 | T22: 206.1031 | U22: 0.1862 | V22: 391.5984 | W22: 0.1379 | X22: 0.8161 | Y22: 0.1824 | Z22: 2.4829 | AA22: 0.562 | AB22: 27.8161 | AC22: 2.0249 | AD22: 17.0683 | AE22: 1.8839 | AF22: 51.7459 | AG22: 62.687 | AH22: 109.5765 | AI22: 37.1658 | AJ22: 1.0288 | AK22: 0.1478 | AL22: 0.0013 | AM22: 0.0839 | AN22: 1.1879 | AO22: 2.1041 | AP22: 59.2402 | AQ22: 0.0023 | AR22: 0.0034 | AS22: 0.0041 | AT22: 0.0002 | AU22: 0.0151 | AV22: 0.1252 | AW22: 0.0013
A23: Low fat meat mixtures | B23: 2.0417 | C23: 0 | D23: 0.5273 | E23: 0.0043 | J23: 20.9429 | K23: 25.8492 | L23: 0.1042 | M23: 111.1427 | N23: 1.1405 | O23: 19.2453 | P23: 1.1718 | Q23: 17.2409 | R23: 2.6375 | S23: 87.6274 | T23: 225.9219 | U23: 0.1006 | V23: 260.0567 | W23: 0.0837 | X23: 0.5576 | Y23: 0.1679 | Z23: 5.3845 | AA23: 0.6345 | AB23: 31.7522 | AC23: 1.3147 | AD23: 8.7774 | AE23: 0.9385 | AF23: 37.1708 | AG23: 33.2556 | AH23: 40.1852 | AI23: 10.8482 | AJ23: 0.1671 | AK23: 0.2394 | AL23: 0.0034 | AM23: 0.0022 | AN23: 1.0618 | AO23: 1.4024 | AP23: 8.3428 | AQ23: 0.0002 | AR23: 0.0054 | AS23: 0.0158 | AT23: 0.0165 | AU23: 0.0639 | AV23: 0.1545 | AW23: 0.0034
A24: Legumes | B24: 0.3314 | C24: 1.005866218 | D24: 0.1949 | E24: 1.2505 | J24: 36.9402 | K24: 2.8093 | L24: 0.2075 | M24: 136.4589 | N24: 4.9139 | O24: 69.846 | P24: 1.7561 | Q24: 38.1414 | R24: 0.7349 | S24: 111.2914 | T24: 308.8805 | U24: 0.075 | V24: 210.3162 | W24: 0.1369 | X24: 0.1082 | Y24: 0.1326 | Z24: 1.5711 | AA24: 0.6893 | AB24: 7.382 | AC24: 1.2372 | AD24: 13.6855 | AE24: 1.9758 | AF24: 27.4938 | AG24: 69.8117 | AH24: 42.9749 | AI24: 9.3853 | AJ24: 0.0152 | AK24: 0.4681 | AL24: 0.0001 | AM24: 0.0006 | AN24: 0.1565 | AO24: 0.6301 | AP24: 30.1668 | AQ24: 0.0018 | AR24: 0.0024 | AS24: 0.0033 | AT24: 0.4263 | AU24: 0.0014 | AV24: 0.0347 | AW24: 0.0001
A25: Nuts and seeds | B25: 0.5244 | C25: 0.9060781895 | D25: 0.0854 | E25: 0.2241 | J25: 65.6867 | K25: 0 | L25: 0.8286 | M25: 537.2384 | N25: 6.3593 | O25: 78.3262 | P25: 3.0911 | Q25: 190.1516 | R25: 8.9044 | S25: 414.2636 | T25: 599.0935 | U25: 0.1644 | V25: 389.3302 | W25: 0.2362 | X25: 0 | Y25: 0.3638 | Z25: 0.6798 | AA25: 7.5892 | AB25: 1.3978 | AC25: 3.3967 | AD25: 122.7602 | AE25: 1.4117 | AF25: 85.4808 | AG25: 81.3933 | AH25: 409.2045 | AI25: 66.8827 | AJ25: 0.0311 | AK25: 0 | AL25: 0.0158 | AM25: 0 | AN25: 6.5337 | AO25: 28.8906 | AP25: 10.5085 | AQ25: 0 | AR25: 0 | AS25: 0 | AT25: 0 | AU25: 0 | AV25: 0 | AW25: 0.0158
A26: Whole grain breads | B26: 0.2582 | C26: 0.3739581739 | D26: 0.0081 | E26: 0.4983 | J26: 66.5763 | K26: 4.5258 | L26: 0.2497 | M26: 270.7375 | N26: 6.2234 | O26: 90.7663 | P26: 3.1012 | Q26: 75.6644 | R26: 3.8114 | S26: 199.2337 | T26: 288.4822 | U26: 0.2461 | V26: 445.9476 | W26: 0.2916 | X26: 0.0534 | Y26: 0.2328 | Z26: 0.0919 | AA26: 0.6255 | AB26: 4.2555 | AC26: 1.5091 | AD26: 17.9992 | AE26: 1.9366 | AF26: 36.1081 | AG26: 197.4896 | AH26: 47.9046 | AI26: 8.744 | AJ26: 3.2593 | AK26: 0 | AL26: 0.0018 | AM26: 0 | AN26: 0 | AO26: 2.4517 | AP26: 32.9728 | AQ26: 2.4779 | AR26: 0 | AS26: 0 | AT26: 0 | AU26: 0 | AV26: 0 | AW26: 0.0018
A27: Non-whole grain breads | B27: 0.2342 | C27: 0.7155331109 | D27: 0.8328 | E27: 0.0088 | J27: 120.6393 | K27: 6.6187 | L27: 0.1807 | M27: 276.6318 | N27: 2.9968 | O27: 147.7179 | P27: 3.0527 | Q27: 29.2098 | R27: 3.6307 | S27: 154.4993 | T27: 130.3339 | U27: 0.295 | V27: 517.0706 | W27: 0.3823 | X27: 0.1089 | Y27: 0.0953 | Z27: 0.0647 | AA27: 0.3535 | AB27: 12.5602 | AC27: 0.7695 | AD27: 14.6419 | AE27: 1.2921 | AF27: 32.0607 | AG27: 195.3891 | AH27: 48.5264 | AI27: 10.241 | AJ27: 3.5358 | AK27: 0.0003 | AL27: 0.0048 | AM27: 0.0021 | AN27: 0.0141 | AO27: 1.3866 | AP27: 33.9962 | AQ27: 0.104 | AR27: 0 | AS27: 0 | AT27: 0.0004 | AU27: 0.0001 | AV27: 0.0001 | AW27: 0.0048
A28: Non-whole grain cereals | B28: 0.1562 | C28: 0 | D28: 0.2521 | E28: 0.0013 | J28: 88.2898 | K28: 1.9885 | L28: 0.0757 | M28: 240.0223 | N28: 2.1046 | O28: 454.431 | P28: 11.4324 | Q28: 21.151 | R28: 9.728 | S28: 80.7115 | T28: 93.2896 | U28: 0.842 | V28: 379.5783 | W28: 0.7442 | X28: 2.6877 | Y28: 0.9924 | Z28: 12.9426 | AA28: 0.4522 | AB28: 260.7912 | AC28: 2.9322 | AD28: 4.7543 | AE28: 0.308 | AF28: 15.4049 | AG28: 210.2688 | AH28: 21.2396 | AI28: 6.6578 | AJ28: 1.6636 | AK28: 0 | AL28: 0.0017 | AM28: 0.0117 | AN28: 0.0081 | AO28: 0.1952 | AP28: 67.2451 | AQ28: 0.0887 | AR28: 0 | AS28: 0 | AT28: 0 | AU28: 0 | AV28: 0 | AW28: 0.0017
A29: Whole grain low calorie cereals | B29: 0.2085 | C29: 0.9865020785 | D29: 0.561 | E29: 0.1464 | J29: 97.1194 | K29: 1.5693 | L29: 0.1053 | M29: 152.3942 | N29: 3.5897 | O29: 222.5019 | P29: 6.3043 | Q29: 54.3051 | R29: 3.8033 | S29: 158.6131 | T29: 160.4739 | U29: 0.3453 | V29: 182.0401 | W29: 0.3398 | X29: 1.0457 | Y29: 0.4388 | Z29: 4.3392 | AA29: 0.2176 | AB29: 110.9235 | AC29: 2.9935 | AD29: 6.4337 | AE29: 0.3381 | AF29: 21.7421 | AG29: 117.155 | AH29: 21.6554 | AI29: 5.753 | AJ29: 1.5265 | AK29: 0 | AL29: 0.0004 | AM29: 0 | AN29: 0 | AO29: 0.0114 | AP29: 3.2844 | AQ29: 0.928 | AR29: 0 | AS29: 0 | AT29: 0 | AU29: 0 | AV29: 0 | AW29: 0.0004
A30: Whole grain cereals | B30: 0.354 | C30: 0 | D30: 0.1744 | E30: 0.0024 | J30: 110.2426 | K30: 1.4547 | L30: 0.157 | M30: 217.8779 | N30: 4.4575 | O30: 348.281 | P30: 9.7954 | Q30: 57.0972 | R30: 7.9248 | S30: 180 | T30: 197.5481 | U30: 0.6954 | V30: 247.0271 | W30: 0.6207 | X30: 2.1664 | Y30: 0.8509 | Z30: 6.1968 | AA30: 1.3479 | AB30: 231.1449 | AC30: 4.5059 | AD30: 9.3807 | AE30: 0.6033 | AF30: 21.7218 | AG30: 175.9338 | AH30: 32.6255 | AI30: 8.1514 | AJ30: 1.4941 | AK30: 0 | AL30: 0.021 | AM30: 0 | AN30: 0.0298 | AO30: 0.341 | AP30: 60.8466 | AQ30: 1.1386 | AR30: 0 | AS30: 0 | AT30: 0 | AU30: 0 | AV30: 0 | AW30: 0.021
A31: Whole grain rice and pasta | B31: 0.0784 | C31: 1.515417938 | D31: 0.0145 | E31: 2.1809 | J31: 9.8101 | K31: 0 | L31: 0.0997 | M31: 112.5155 | N31: 1.7865 | O31: 5.0447 | P31: 0.4274 | Q31: 41.964 | R31: 1.4999 | S31: 81.9946 | T31: 45.5256 | U31: 0.033 | V31: 6.5876 | W31: 0.0962 | X31: 0 | Y31: 0.1385 | Z31: 0 | AA31: 0.0847 | AB31: 0.4403 | AC31: 0.66 | AD31: 4.1884 | AE31: 0.2627 | AF31: 10.4926 | AG31: 90.4625 | AH31: 11.0496 | AI31: 1.9825 | AJ31: 1.0431 | AK31: 0 | AL31: 0 | AM31: 0 | AN31: 0 | AO31: 0 | AP31: 1.5808 | AQ31: 1.0431 | AR31: 0 | AS31: 0 | AT31: 0 | AU31: 0 | AV31: 0 | AW31: 0
A32: Non-whole grain rice and pasta | B32: 0.0559 | C32: 0 | D32: 0.2961 | E32: 0.692 | J32: 10.626 | K32: 2.5245 | L32: 0.0746 | M32: 135.5989 | N32: 0.6727 | O32: 96.5371 | P32: 1.1787 | Q32: 12.6515 | R32: 1.3891 | S32: 43.6596 | T32: 32.2668 | U32: 0.0354 | V32: 15.3964 | W32: 0.1574 | X32: 0.0072 | Y32: 0.0654 | Z32: 0.0254 | AA32: 0.1785 | AB32: 3.5345 | AC32: 0.4618 | AD32: 4.6805 | AE32: 0.4934 | AF32: 12.0544 | AG32: 105.9125 | AH32: 14.61 | AI32: 3.0666 | AJ32: 1.2638 | AK32: 0.0009 | AL32: 0 | AM32: 0.0025 | AN32: 0 | AO32: 0.3905 | AP32: 4.8982 | AQ32: 0.0032 | AR32: 0 | AS32: 0 | AT32: 0 | AU32: 0 | AV32: 0.0009 | AW32: 0
A33: Whole grain cakes and pies | B33: 0.4702 | C33: 0 | D33: 0.0078 | E33: 0 | J33: 43.2674 | K33: 32.6404 | L33: 0.1794 | M33: 371.9551 | N33: 1.8559 | O33: 61.3725 | P33: 2.645 | Q33: 30.1255 | R33: 2.5387 | S33: 134.5639 | T33: 143.3762 | U33: 0.2689 | V33: 415.1323 | W33: 0.2216 | X33: 0.1454 | Y33: 0.1888 | Z33: 0.4663 | AA33: 0.8338 | AB33: 105.7582 | AC33: 0.8453 | AD33: 27.2123 | AE33: 2.5071 | AF33: 32.1372 | AG33: 211.2492 | AH33: 131.4725 | AI33: 48.7384 | AJ33: 1.6602 | AK33: 0 | AL33: 0.0319 | AM33: 0.0382 | AN33: 0.0282 | AO33: 0.2412 | AP33: 201.1159 | AQ33: 0.9492 | AR33: 0 | AS33: 0 | AT33: 0 | AU33: 0 | AV33: 0 | AW33: 0.0319
A34: Non-whole grain cakes and pies | B34: 0.2735 | C34: 0 | D34: 0.4858 | E34: 0.0015 | J34: 55.7975 | K34: 26.1997 | L34: 0.1537 | M34: 373.0752 | N34: 1.6417 | O34: 76.371 | P34: 2.1302 | Q34: 22.9603 | R34: 2.0744 | S34: 103.3189 | T34: 121.439 | U34: 0.2215 | V34: 290.3495 | W34: 0.2099 | X34: 0.2066 | Y34: 0.0939 | Z34: 1.72 | AA34: 0.8476 | AB34: 67.0996 | AC34: 0.6364 | AD34: 33.0436 | AE34: 2.685 | AF34: 19.0435 | AG34: 218.9977 | AH34: 142.5803 | AI34: 35.425 | AJ34: 1.754 | AK34: 0.0051 | AL34: 0.0486 | AM34: 0.0076 | AN34: 0.0881 | AO34: 1.3132 | AP34: 210.1939 | AQ34: 0.0319 | AR34: 0 | AS34: 0.0048 | AT34: 0.0001 | AU34: 0.0003 | AV34: 0 | AW34: 0.0486
A35: Whole grain snacks | B35: 0.4952 | C35: 0 | D35: 0.0238 | E35: 0.0012 | J35: 24.6731 | K35: 7.0463 | L35: 0.2477 | M35: 477.6473 | N35: 8.7031 | O35: 33.8026 | P35: 2.5921 | Q35: 92.4988 | R35: 2.2465 | S35: 218.1698 | T35: 208.4315 | U35: 0.1487 | V35: 683.8156 | W35: 0.1813 | X35: 0.0085 | Y35: 0.1587 | Z35: 0.1458 | AA35: 2.9802 | AB35: 25.8863 | AC35: 2.196 | AD35: 70.5648 | AE35: 4.235 | AF35: 34.0126 | AG35: 250.8534 | AH35: 206.2019 | AI35: 49.0679 | AJ35: 2.8989 | AK35: 0.0249 | AL35: 0 | AM35: 0.006 | AN35: 0.0661 | AO35: 12.809 | AP35: 95.8146 | AQ35: 2.6839 | AR35: 0 | AS35: 0 | AT35: 0 | AU35: 0.0249 | AV35: 0 | AW35: 0
A36: Non-whole grain snacks | B36: 0.5356 | C36: 0 | D36: 0.0503 | E36: 0.4578 | J36: 107.341 | K36: 1.4417 | L36: 0.1549 | M36: 486.8107 | N36: 3.7861 | O36: 117.4289 | P36: 2.9911 | Q36: 50.2077 | R36: 3.1834 | S36: 167.7209 | T36: 174.4437 | U36: 0.3209 | V36: 877.8997 | W36: 0.2787 | X36: 0.0747 | Y36: 0.1906 | Z36: 0.2048 | AA36: 2.301 | AB36: 7.2891 | AC36: 1.0634 | AD36: 42.8637 | AE36: 3.0321 | AF36: 31.9164 | AG36: 253.8584 | AH36: 207.0143 | AI36: 39.1363 | AJ36: 4.5353 | AK36: 0.0011 | AL36: 0 | AM36: 0.0434 | AN36: 0.0575 | AO36: 15.6353 | AP36: 45.3863 | AQ36: 0.0229 | AR36: 0 | AS36: 0 | AT36: 0 | AU36: 0.0006 | AV36: 0.0005 | AW36: 0
A37: Grain mixtures | B37: 0.3267 | C37: 2.550624672e-08 | D37: 0.2869 | E37: 0.003 | J37: 130.6901 | K37: 25.5995 | L37: 0.1167 | M37: 236.8619 | N37: 1.5965 | O37: 70.471 | P37: 1.8172 | Q37: 22.1886 | R37: 2.2074 | S37: 151.1351 | T37: 176.2098 | U37: 0.203 | V37: 316.7928 | W37: 0.2044 | X37: 0.3844 | Y37: 0.1094 | Z37: 3.7223 | AA37: 0.6149 | AB37: 39.6549 | AC37: 1.3402 | AD37: 12.9526 | AE37: 1.3094 | AF37: 39.8989 | AG37: 97.3665 | AH37: 98.8923 | AI37: 38.0941 | AJ37: 1.4909 | AK37: 0.1694 | AL37: 0.0012 | AM37: 0.337 | AN37: 0.3915 | AO37: 0.9051 | AP37: 68.7232 | AQ37: 0.0001 | AR37: 0.0002 | AS37: 0.0006 | AT37: 0.014 | AU37: 0.0024 | AV37: 0.166 | AW37: 0.0012
A38: Low fat grain mixtures | B38: 0.13 | C38: 0 | D38: 0.3747 | E38: 0.0038 | J38: 18.2615 | K38: 7.3579 | L38: 0.0751 | M38: 90.483 | N38: 0.8739 | O38: 41.137 | P38: 0.9153 | Q38: 11.4196 | R38: 1.1511 | S38: 41.9906 | T38: 101.7856 | U38: 0.0651 | V38: 224.172 | W38: 0.0914 | X38: 0.0938 | Y38: 0.0571 | Z38: 2.1164 | AA38: 0.4543 | AB38: 13.9931 | AC38: 0.4227 | AD38: 5.2745 | AE38: 0.4131 | AF38: 13.3683 | AG38: 52.8631 | AH38: 23.9712 | AI38: 7.291 | AJ38: 0.5962 | AK38: 0.1154 | AL38: 0.0001 | AM38: 0.017 | AN38: 0.1906 | AO38: 0.3435 | AP38: 15.2648 | AQ38: 0.0028 | AR38: 0.0014 | AS38: 0.0014 | AT38: 0.0124 | AU38: 0.0012 | AV38: 0.1115 | AW38: 0.0001
A39: Citrus, melon and berry juice | B39: 0.2256 | C39: 0 | D39: 0.6712 | E39: 0.0204 | J39: 8.8003 | K39: 0.0011 | L39: 0.0575 | M39: 42.421 | N39: 0.2005 | O39: 21.9364 | P39: 0.3642 | Q39: 10.9617 | R39: 0.2914 | S39: 14.147 | T39: 175.2525 | U39: 0.0269 | V39: 2.0995 | W39: 0.0614 | X39: 0.0002 | Y39: 0.0765 | Z39: 34.4845 | AA39: 0.2024 | AB39: 8.365 | AC39: 0.0736 | AD39: 0.2682 | AE39: 0.0994 | AF39: 2.3815 | AG39: 39.9358 | AH39: 1.2106 | AI39: 0.1571 | AJ39: 0 | AK39: 0 | AL39: 0.4011 | AM39: 0.0001 | AN39: 0 | AO39: 0 | AP39: 0.4535 | AQ39: 0 | AR39: 0 | AS39: 0 | AT39: 0 | AU39: 0 | AV39: 0 | AW39: 0
A40: Citrus, melon and berries | B40: 0.2373 | C40: 0.188542296 | D40: 0.4807 | E40: 0.011 | J40: 15.5932 | K40: 0 | L40: 0.0399 | M40: 36.477 | N40: 1.1701 | O40: 14.4698 | P40: 0.2098 | Q40: 10.2219 | R40: 0.3241 | S40: 12.7604 | T40: 162.5212 | U40: 0.0243 | V40: 4.4463 | W40: 0.0464 | X40: 0 | Y40: 0.0538 | Z40: 28.1418 | AA40: 0.1098 | AB40: 45.7783 | AC40: 0.109 | AD40: 0.3697 | AE40: 0.1613 | AF40: 2.9211 | AG40: 36.601 | AH40: 1.4453 | AI40: 0.2146 | AJ40: 0.0001 | AK40: 0 | AL40: 0.6049 | AM40: 0.0001 | AN40: 0 | AO40: 0.0002 | AP40: 1.0006 | AQ40: 0 | AR40: 0 | AS40: 0 | AT40: 0 | AU40: 0 | AV40: 0 | AW40: 0.6049
A41: Other fruit juice | B41: 0.1545 | C41: 2.082642933 | D41: 0.3835 | E41: 0.2796 | J41: 9.2126 | K41: 0 | L41: 0.0328 | M41: 50.9694 | N41: 0.1861 | O41: 4.4171 | P41: 0.3207 | Q41: 6.0481 | R41: 0.1836 | S41: 8.8964 | T41: 125.0669 | U41: 0.0251 | V41: 2.8013 | W41: 0.0277 | X41: 0 | Y41: 0.0487 | Z41: 12.6865 | AA41: 0.0682 | AB41: 1.4311 | AC41: 0.0484 | AD41: 0.2432 | AE41: 0.0904 | AF41: 1.0508 | AG41: 50.4639 | AH41: 0.9334 | AI41: 0.1918 | AJ41: 0 | AK41: 0.0001 | AL41: 0.3992 | AM41: 0 | AN41: 0 | AO41: 0.0001 | AP41: 1.9771 | AQ41: 0 | AR41: 0 | AS41: 0.0001 | AT41: 0 | AU41: 0 | AV41: 0 | AW41: 0
A42: Other fruits | B42: 0.2161 | C42: 1.421406912 | D42: 0.9664 | E42: 2.7122 | J42: 8.1269 | K42: 0.0197 | L42: 0.0782 | M42: 75.9397 | N42: 2.3401 | O42: 10.6579 | P42: 0.2719 | Q42: 13.8385 | R42: 0.45 | S42: 18.9775 | T42: 222.8567 | U42: 0.0511 | V42: 2.4841 | W42: 0.0325 | X42: 0.0001 | Y42: 0.1508 | Z42: 8.3242 | AA42: 0.3146 | AB42: 6.8351 | AC42: 0.1214 | AD42: 1.0222 | AE42: 0.1807 | AF42: 3.0107 | AG42: 73.8735 | AH42: 7.0799 | AI42: 1.3162 | AJ42: 0.0003 | AK42: 0.0002 | AL42: 0.72 | AM42: 0.0006 | AN42: 0.0008 | AO42: 0.0259 | AP42: 4.8032 | AQ42: 0 | AR42: 0 | AS42: 0 | AT42: 0 | AU42: 0 | AV42: 0.0001 | AW42: 0.72
A43: Potatoes | B43: 0.1669 | C43: 0 | D43: 0.2976 | E43: 0.971 | J43: 17.0227 | K43: 3.1914 | L43: 0.1921 | M43: 305.1389 | N43: 3.154 | O43: 14.9447 | P43: 0.9108 | Q43: 36.9128 | R43: 2.5079 | S43: 107.2531 | T43: 663.0523 | U43: 0.0638 | V43: 209.3449 | W43: 0.1118 | X43: 0.0103 | Y43: 0.3812 | Z43: 14.2959 | AA43: 2.1735 | AB43: 2.6235 | AC43: 0.5174 | AD43: 36.9539 | AE43: 2.1324 | AF43: 16.0547 | AG43: 142.3289 | AH43: 151.0136 | AI43: 36.1776 | AJ43: 0.0084 | AK43: 0.7914 | AL43: 0 | AM43: 0.0047 | AN43: 0.0147 | AO43: 7.0681 | AP43: 75.1095 | AQ43: 0.002 | AR43: 0 | AS43: 0 | AT43: 0 | AU43: 0.7725 | AV43: 0.0188 | AW43: 0
A44: Low fat potatoes | B44: 0.1033 | C44: 2.461419478 | D44: 0.5457 | E44: 0.0059 | J44: 23.7472 | K44: 2.9983 | L44: 0.1295 | M44: 98.6292 | N44: 1.5543 | O44: 10.5161 | P44: 0.4037 | Q44: 19.3646 | R44: 1.1302 | S44: 52.288 | T44: 323.464 | U44: 0.0438 | V44: 73.7422 | W44: 0.0942 | X44: 0.0469 | Y44: 0.2319 | Z44: 8.7679 | AA44: 0.1604 | AB44: 24.0174 | AC44: 0.306 | AD44: 4.4614 | AE44: 0.5315 | AF44: 8.6759 | AG44: 69.0133 | AH44: 22.8692 | AI44: 8.09 | AJ44: 0.0073 | AK44: 0.592 | AL44: 0 | AM44: 0.0525 | AN44: 0.0136 | AO44: 0.0584 | AP44: 17.9655 | AQ44: 0 | AR44: 0 | AS44: 0 | AT44: 0 | AU44: 0.5891 | AV44: 0.0029 | AW44: 0
A45: Dark green vegetables | B45: 0.4515 | C45: 3.96785172 | D45: 0.0885 | E45: 0.0014 | J45: 108.8516 | K45: 1.8555 | L45: 0.1188 | M45: 46.3764 | N45: 2.8831 | O45: 86.884 | P45: 1.0564 | Q45: 24.2949 | R45: 0.5292 | S45: 43.2283 | T45: 214.8093 | U45: 0.0958 | V45: 54.2708 | W45: 0.0514 | X45: 0.0121 | Y45: 0.1461 | Z45: 29.4995 | AA45: 1.5881 | AB45: 330.7707 | AC45: 0.3034 | AD45: 3.794 | AE45: 1.0894 | AF45: 9.4744 | AG45: 20.1086 | AH45: 22.3058 | AI45: 6.4472 | AJ45: 0.0127 | AK45: 0.6172 | AL45: 0 | AM45: 0.0132 | AN45: 0 | AO45: 0 | AP45: 18.0769 | AQ45: 0 | AR45: 0.6161 | AS45: 0 | AT45: 0 | AU45: 0 | AV45: 0.0011 | AW45: 0
A46: Orange vegetables | B46: 0.1688 | C46: 0 | D46: 0.0551 | E46: 0.0011 | J46: 28.6178 | K46: 2.2229 | L46: 0.0681 | M46: 94.1599 | N46: 2.6519 | O46: 10.619 | P46: 0.5733 | Q46: 12.6219 | R46: 0.5861 | S46: 31.2168 | T46: 236.9035 | U46: 0.049 | V46: 75.0558 | W46: 0.0519 | X46: 0.0113 | Y46: 0.125 | Z46: 6.6501 | AA46: 1.1235 | AB46: 656.2516 | AC46: 0.2081 | AD46: 9.2196 | AE46: 1.0384 | AF46: 3.8574 | AG46: 62.2358 | AH46: 30.9017 | AI46: 8.1675 | AJ46: 0 | AK46: 0.5619 | AL46: 0.0153 | AM46: 0.006 | AN46: 0.0015 | AO46: 0.7022 | AP46: 38.0595 | AQ46: 0 | AR46: 0 | AS46: 0.5619 | AT46: 0 | AU46: 0 | AV46: 0 | AW46: 0.0153
A47: Dark green vegetables, no fat | B47: 0.3155 | C47: 0.04899870589 | D47: 0.0413 | E47: 0.5647 | J47: 64.1576 | K47: 0 | L47: 0.0721 | M47: 28.5702 | N47: 2.9173 | O47: 86.2391 | P47: 1.0175 | Q47: 27.3981 | R47: 0.5166 | S47: 53.2593 | T47: 262.5123 | U47: 0.1125 | V47: 32.4734 | W47: 0.0634 | X47: 0 | Y47: 0.1519 | Z47: 44.9615 | AA47: 1.3133 | AB47: 169.3681 | AC47: 0.3956 | AD47: 0.2958 | AE47: 0.6312 | AF47: 10.5137 | AG47: 21.9638 | AH47: 2.5309 | AI47: 0.4159 | AJ47: 0 | AK47: 0.7745 | AL47: 0 | AM47: 0 | AN47: 0 | AO47: 0 | AP47: 0 | AQ47: 0 | AR47: 0.7745 | AS47: 0 | AT47: 0 | AU47: 0 | AV47: 0 | AW47: 0
A48: Orange vegetables, no fat | B48: 0.1969 | C48: 2.019174185 | D48: 0.0593 | E48: 0.3595 | J48: 31.4285 | K48: 0.0014 | L48: 0.0606 | M48: 46.5219 | N48: 2.8497 | O48: 15.846 | P48: 0.4097 | Q48: 13.7228 | R48: 0.904 | S48: 35.8335 | T48: 324.9471 | U48: 0.0628 | V48: 57.8701 | W48: 0.0686 | X48: 0.0002 | Y48: 0.1599 | Z48: 7.8608 | AA48: 0.7164 | AB48: 653.4229 | AC48: 0.2409 | AD48: 0.8653 | AE48: 0.13 | AF48: 4.1375 | AG48: 43.2367 | AH48: 2.1092 | AI48: 0.3659 | AJ48: 0 | AK48: 0.6823 | AL48: 0 | AM48: 0.0001 | AN48: 0 | AO48: 0 | AP48: 0.1607 | AQ48: 0 | AR48: 0 | AS48: 0.6823 | AT48: 0 | AU48: 0 | AV48: 0 | AW48: 0
A49: Other vegetables | B49: 0.2466 | C49: 0 | D49: 0.2438 | E49: 0.0039 | J49: 38.6516 | K49: 1.6097 | L49: 0.0784 | M49: 75.8819 | N49: 2.3307 | O49: 35.5303 | P49: 0.7148 | Q49: 20.6424 | R49: 0.7609 | S49: 47.9788 | T49: 195.6622 | U49: 0.0905 | V49: 97.8595 | W49: 0.0782 | X49: 0.0235 | Y49: 0.093 | Z49: 12.3373 | AA49: 0.4123 | AB49: 38.1429 | AC49: 0.3838 | AD49: 8.0907 | AE49: 1.1471 | AF49: 9.2849 | AG49: 42.9631 | AH49: 29.6108 | AI49: 7.4354 | AJ49: 0.0204 | AK49: 0.5675 | AL49: 0.0145 | AM49: 0.0301 | AN49: 0.0001 | AO49: 0.3475 | AP49: 18.8532 | AQ49: 0 | AR49: 0.011 | AS49: 0 | AT49: 0 | AU49: 0.1799 | AV49: 0.3765 | AW49: 0.0145
A50: Tomatoes | B50: 0.1609 | C50: 0 | D50: 0.0324 | E50: 0.3397 | J50: 34.7197 | K50: 1.9111 | L50: 0.1084 | M50: 57.8858 | N50: 1.057 | O50: 10.2826 | P50: 0.7501 | Q50: 13.3087 | R50: 0.8762 | S50: 41.0288 | T50: 250.1085 | U50: 0.0671 | V50: 376.7509 | W50: 0.0495 | X50: 0.0627 | Y50: 0.0927 | Z50: 13.9916 | AA50: 1.5441 | AB50: 41.3692 | AC50: 0.2325 | AD50: 5.2747 | AE50: 0.5253 | AF50: 7.0811 | AG50: 34.5482 | AH50: 17.9552 | AI50: 4.3951 | AJ50: 0.0726 | AK50: 0.573 | AL50: 0 | AM50: 0.0668 | AN50: 0.0094 | AO50: 0.0738 | AP50: 13.9515 | AQ50: 0 | AR50: 0 | AS50: 0.0047 | AT50: 0.0005 | AU50: 0.0043 | AV50: 0.5645 | AW50: 0
A51: Other vegetables, no fat | B51: 0.1753 | C51: 1.066917193 | D51: 0.5696 | E51: 0.2035 | J51: 20.6201 | K51: 1.6208 | L51: 0.0578 | M51: 41.741 | N51: 1.5476 | O51: 36.4832 | P51: 0.5888 | Q51: 14.6587 | R51: 0.5734 | S51: 38.8392 | T51: 189.0055 | U51: 0.0536 | V51: 114.8776 | W51: 0.057 | X51: 0.0352 | Y51: 0.0894 | Z51: 11.3729 | AA51: 0.1485 | AB51: 30.5997 | AC51: 0.4065 | AD51: 1.3863 | AE51: 0.3019 | AF51: 7.878 | AG51: 30.5866 | AH51: 7.464 | AI51: 2.1408 | AJ51: 0.0044 | AK51: 0.6477 | AL51: 0.0113 | AM51: 0 | AN51: 0.0435 | AO51: 0.0222 | AP51: 3.1671 | AQ51: 0.0008 | AR51: 0.0114 | AS51: 0.0065 | AT51: 0.0007 | AU51: 0.1383 | AV51: 0.4916 | AW51: 0.0113
A52: Tomatoes, no fat | B52: 0.2217 | C52: 0.8308796283 | D52: 0.1886 | E52: 0.8357 | J52: 10.6058 | K52: 0.4564 | L52: 0.0688 | M52: 21.8295 | N52: 1.0497 | O52: 14.8765 | P52: 0.3434 | Q52: 10.3741 | R52: 0.6177 | S52: 23.4407 | T52: 218.8248 | U52: 0.0229 | V52: 73.7465 | W52: 0.0407 | X52: 0.0075 | Y52: 0.0796 | Z52: 13.3719 | AA52: 0.5542 | AB52: 39.5385 | AC52: 0.178 | AD52: 1.3433 | AE52: 0.1232 | AF52: 3.8829 | AG52: 17.6198 | AH52: 3.0632 | AI52: 0.6868 | AJ52: 0.0221 | AK52: 0.5083 | AL52: 0.0001 | AM52: 0.0017 | AN52: 0.0074 | AO52: 0.0025 | AP52: 0.9775 | AQ52: 0.0001 | AR52: 0.0001 | AS52: 0.0016 | AT52: 0.0002 | AU52: 0.0016 | AV52: 0.5051 | AW52: 0.0001
A53: Mixed vegetables | B53: 0.3779 | C53: 0 | D53: 0.1803 | E53: 0.3368 | J53: 48.3443 | K53: 12.4 | L53: 0.0604 | M53: 113.8409 | N53: 1.8584 | O53: 25.2053 | P53: 0.6971 | Q53: 14.3688 | R53: 0.6711 | S53: 54.2827 | T53: 205.4157 | U53: 0.0794 | V53: 109.5667 | W53: 0.0651 | X53: 0.0559 | Y53: 0.1249 | Z53: 16.9187 | AA53: 0.9372 | AB53: 134.9056 | AC53: 0.3605 | AD53: 26.6431 | AE53: 3.1358 | AF53: 9.7884 | AG53: 39.8273 | AH53: 68.831 | AI53: 14.2853 | AJ53: 0.0927 | AK53: 0.6535 | AL53: 0.0047 | AM53: 0.0683 | AN53: 0.0651 | AO53: 5.9045 | AP53: 24.6008 | AQ53: 0.016 | AR53: 0.0151 | AS53: 0.099 | AT53: 0.0012 | AU53: 0.0741 | AV53: 0.4652 | AW53: 0.0047
A54: Mixed vegetables, no fat | B54: 0.3521 | C54: 0 | D54: 0.0249 | E54: 0.0003 | J54: 18.6958 | K54: 0.4975 | L54: 0.081 | M54: 53.3892 | N54: 2.3394 | O54: 22.883 | P54: 0.7605 | Q54: 14.5809 | R54: 0.8538 | S54: 42.8003 | T54: 195.1259 | U54: 0.0608 | V54: 142.7405 | W54: 0.0857 | X54: 0.0119 | Y54: 0.1082 | Z54: 12.2089 | AA54: 0.3928 | AB54: 134.2785 | AC54: 0.4521 | AD54: 1.1833 | AE54: 0.2209 | AF54: 9.5527 | AG54: 39.4192 | AH54: 7.8385 | AI54: 2.3933 | AJ54: 0.0924 | AK54: 0.5832 | AL54: 0 | AM54: 0 | AN54: 0.0185 | AO54: 0.3994 | AP54: 1.9178 | AQ54: 0 | AR54: 0.031 | AS54: 0.1113 | AT54: 0 | AU54: 0.2707 | AV54: 0.1701 | AW54: 0
A55: Fats and oils | B55: 0.2055 | C55: 0 | D55: 0.3414 | E55: 0.3401 | J55: 27.0141 | K55: 11.8849 | L55: 0.0912 | M55: 224.4083 | N55: 0.8274 | O55: 8.2173 | P55: 0.5714 | Q55: 11.0177 | R55: 0.6248 | S55: 34.0069 | T55: 160.0783 | U55: 0.1125 | V55: 742.7267 | W55: 0.0424 | X55: 0.0763 | Y55: 0.0965 | Z55: 6.8435 | AA55: 2.0971 | AB55: 93.1411 | AC55: 0.2688 | AD55: 67.125 | AE55: 8.7362 | AF55: 6.8527 | AG55: 39.8079 | AH55: 184.6661 | AI55: 40.4767 | AJ55: 0.0883 | AK55: 0.2555 | AL55: 0.0012 | AM55: 0.0325 | AN55: 0.0413 | AO55: 15.2235 | AP55: 52.4779 | AQ55: 0 | AR55: 0.0004 | AS55: 0 | AT55: 0 | AU55: 0 | AV55: 0.2551 | AW55: 0.0012
A56: Coffee | B56: 0.0204 | C56: 0 | D56: 6.0336 | E56: 0.6335 | J56: 1.3482 | K56: 0.0256 | L56: 0.0053 | M56: 6.9033 | N56: 0.0018 | O56: 2.5679 | P56: 0.0188 | Q56: 2.5716 | R56: 0.033 | S56: 2.4357 | T56: 40.2211 | U56: 0.0295 | V56: 2.0724 | W56: 0.0005 | X56: 0.001 | Y56: 0.0008 | Z56: 0.001 | AA56: 0.0102 | AB56: 0.0881 | AC56: 0.0147 | AD56: 0.0078 | AE56: 0.0017 | AF56: 0.3663 | AG56: 4.915 | AH56: 3.4807 | AI56: 0.0606 | AJ56: 0.0005 | AK56: 0 | AL56: 0 | AM56: 0.0011 | AN56: 0 | AO56: 0.0002 | AP56: 4.0852 | AQ56: 0.0002 | AR56: 0 | AS56: 0 | AT56: 0 | AU56: 0 | AV56: 0 | AW56: 0
A57: Soft drinks | B57: 0.0668 | C57: 0 | D57: 2.2245 | E57: 0.0069 | J57: 4.9007 | K57: 0.0097 | L57: 0.0119 | M57: 41.7277 | N57: 0.0119 | O57: 0.424 | P57: 0.0528 | Q57: 1.2733 | R57: 0.017 | S57: 6.6893 | T57: 5.7352 | U57: 0.0032 | V57: 8.2576 | W57: 0.0044 | X57: 0.0016 | Y57: 0.0034 | Z57: 3.4793 | AA57: 0.0054 | AB57: 0.8218 | AC57: 0.0243 | AD57: 0.0103 | AE57: 0.0045 | AF57: 0.1428 | AG57: 42.807 | AH57: 0.0734 | AI57: 0.0293 | AJ57: 0.0004 | AK57: 0 | AL57: 0.0137 | AM57: 0.0001 | AN57: 0.001 | AO57: 0.0006 | AP57: 39.3343 | AQ57: 0 | AR57: 0 | AS57: 0 | AT57: 0 | AU57: 0 | AV57: 0 | AW57: 0.0137
A58: Low calorie soft drinks | B58: 0.1341 | C58: 0 | D58: 0.5221 | E58: 0.0036 | J58: 3.6399 | K58: 0 | L58: 0.0131 | M58: 5.8772 | N58: 0.0064 | O58: 0.2697 | P58: 0.0353 | Q58: 1.2693 | R58: 0.0233 | S58: 8.6792 | T58: 7.8581 | U58: 0.015 | V58: 10.4531 | W58: 0.0085 | X58: 0.0004 | Y58: 0.0019 | Z58: 2.0799 | AA58: 0.0164 | AB58: 0.037 | AC58: 0.0197 | AD58: 0.0087 | AE58: 0.0018 | AF58: 0.342 | AG58: 5.3886 | AH58: 0.0211 | AI58: 0.0035 | AJ58: 0.0006 | AK58: 0 | AL58: 0.0111 | AM58: 0 | AN58: 0 | AO58: 0 | AP58: 2.6603 | AQ58: 0 | AR58: 0 | AS58: 0 | AT58: 0 | AU58: 0 | AV58: 0 | AW58: 0.0111
A59: Sugars | B59: 0.4108 | C59: 0 | D59: 0.199 | E59: 0.0007 | J59: 30.7712 | K59: 2.3339 | L59: 0.1133 | M59: 318.5985 | N59: 0.9453 | O59: 6.2918 | P59: 0.501 | Q59: 17.0975 | R59: 0.4142 | S59: 45.6826 | T59: 116.075 | U59: 0.0596 | V59: 69.7042 | W59: 0.026 | X59: 0.0741 | Y59: 0.0267 | Z59: 3.8191 | AA59: 0.4195 | AB59: 6.6689 | AC59: 0.4651 | AD59: 4.693 | AE59: 0.1816 | AF59: 7.5823 | AG59: 266.6488 | AH59: 55.7747 | AI59: 25.4751 | AJ59: 0.1422 | AK59: 0.0001 | AL59: 0.036 | AM59: 0.0539 | AN59: 0.1592 | AO59: 3.1825 | AP59: 225.3176 | AQ59: 0.0058 | AR59: 0 | AS59: 0 | AT59: 0 | AU59: 0 | AV59: 0 | AW59: 0.036
A60: Lower Limit | J60: 1200 | K60: 0 | L60: 0.9 | M60: 2200 | N60: 30.8 | O60: 400 | P60: 8 | Q60: 420 | R60: 16 | S60: 700 | T60: 4700 | U60: 1.3 | V60: 0 | W60: 1.2 | X60: 2.4 | Y60: 1.7 | Z60: 90 | AA60: 15 | AB60: 900 | AC60: 11 | AD60: =0.05*M60 -> 110 | AE60: =0.006*M60 -> 13.2 | AF60: =0.1*M60 -> 220 | AG60: =0.45*M60 -> 990 | AH60: =0.2*M60 -> 440 | AI60: 0 | AJ60: 7 | AK60: 3 | AL60: 2 | AM60: 0 | AN60: 6 | AO60: 29 | AP60: 0 | AQ60: 3.5 | AR60: 0.43 | AS60: 0.29 | AT60: 0.43 | AU60: 0.86 | AV60: 1 | AW60: 1
A61: Upper Limit | J61: 2500 | K61: 299.99 | L61: 10 | M61: 2200 | N61: 10000000000 | O61: 1000 | P61: 45 | Q61: 10000000000 | R61: 35 | S61: 3000 | T61: 10000000000 | U61: 10000000000 | V61: 2460 | W61: 10000000000 | X61: 10000000000 | Y61: 100 | Z61: 2000 | AA61: 1000 | AB61: 3000 | AC61: 40 | AD61: =0.1*M61 -> 220 | AE61: =0.012*M61 -> 26.4 | AF61: =0.35*M61 -> 770 | AG61: =0.65*M61 -> 1430 | AH61: =0.35*M61 -> 770 | AI61: =0.1*M61 -> 220 | AJ61: 10000000000 | AK61: 10000000000 | AL61: 10000000000 | AM61: 1 | AN61: 10000000000 | AO61: 10000000000 | AP61: 290 | AQ61: 10000000000 | AR61: 10000000000 | AS61: 10000000000 | AT61: 10000000000 | AU61: 10000000000 | AV61: 10000000000 | AW61: 10000000000
A62: Sum of Constraints | J62: =SUMPRODUCT($C$2:$C$59,J2:J59) -> 1200.000002 | K62: =SUMPRODUCT($C$2:$C$59,K2:K59) -> 62.44784941 | L62: 2.693145372 | M62: 2199.999999 | N62: 49.11209256 | O62: 1000.000007 | P62: 23.2319179 | Q62: 623.1375596 | R62: 28.69529605 | S62: 1663.183648 | T62: 4699.999996 | U62: 1.930064947 | V62: 2460.000001 | W62: 2.028461565 | X62: 2.400000036 | Y62: 3.290327975 | Z62: 230.382022 | AA62: 18.00277504 | AB62: 2999.99999 | AC62: 14.03578349 | AD62: 190.0346055 | AE62: 13.37678435 | AF62: 310.6090768 | AG62: 1223.723219 | AH62: 770.0000028 | AI62: 197.252217 | AJ62: 6.999999923 | AK62: 6.926036144 | AL62: 1.99999999 | AM62: 1.000000002 | AN62: 6.446158539 | AO62: 29.00000001 | AP62: 290.0000011 | AQ62: 3.499999964 | AR62: 2.498503983 | AS62: 1.389474538 | AT62: 0.4300000005 | AU62: 1.609267649 | AV62: 0.9999999846 | AW62: 1.168608931
AD63: =0.05*M60 -> 110 | AE63: =0.006*M60 -> 13.2 | AF63: =0.1*M60 -> 220 | AG63: =0.45*M60 -> 990 | AH63: =0.2*M60 -> 440 | AI63: 0
AD64: =0.1*M61 -> 220 | AE64: =0.012*M61 -> 26.4 | AF64: =0.35*M61 -> 770 | AG64: =0.65*M61 -> 1430 | AH64: =0.35*M61 -> 770 | AI64: =0.1*M61 -> 220

Sheet Female
A1: Food Group | B1: Cost | C1: Solution | D1: Cur.Consumption | E1: TFP | J1: Calcium | K1: Cholesterol | L1: Copper | M1: Energy | N1: Fiber | O1: Folate | P1: Iron | Q1: Magnesium | R1: Niacin | S1: Phosphorus | T1: Potassium | U1: Riboflavin | V1: Sodium | W1: Thiamin | X1: Vitamin B12 | Y1: Vitamin B6 | Z1: Vitamin C | AA1: Vitamin E | AB1: Vitamin A | AC1: Zinc | AD1: Calories from linoleic acid | AE1: Calories from linolenic acid | AF1: Calories from protein | AG1: Calories from carbohydrates | AH1: calories from fat | AI1: Calories from saturated fat | AJ1: Servings of grains | AK1: Servings of vegetables | AL1: Servings of fruit | AM1: Servings of dairy | AN1: Servings of meat/protein | AO1: Servings of fats and oils | AP1: SOFASUG_tot_kcal | AQ1: Servings of whole grains | AR1: Servings of dark green vegetables | AS1: Servings of orange vegetables | AT1: Servings of legumes (vegetables) | AU1: V_STARCY_py | AV1: V_OTHER_py | AW1: Servings of whole fruit
A2: Milk | B2: 0.1034 | C2: 0 | D2: 0.6435 | E2: 0.0044 | J2: 112.2304 | K2: 11.6225 | L2: 0.0112 | M2: 70.1136 | N2: 0.0032 | O2: 5.0504 | P2: 0.0429 | Q2: 9.9512 | R2: 0.1098 | S2: 93.1717 | T2: 148.1604 | U2: 0.1781 | V2: 45.8517 | W2: 0.0396 | X2: 0.4288 | Y2: 0.0393 | Z2: 0.0532 | AA2: 0.0859 | AB2: 33.4926 | AC2: 0.4024 | AD2: 1.1927 | AE2: 0.6953 | AF2: 12.9883 | AG2: 20.5465 | AH2: 37.0888 | AI2: 22.0016 | AJ2: 0.0003 | AK2: 0.0003 | AL2: 0.0002 | AM2: 0.3876 | AN2: 0 | AO2: 0.0032 | AP2: 33.1552 | AQ2: 0 | AR2: 0 | AS2: 0 | AT2: 0 | AU2: 0 | AV2: 0.0003 | AW2: 0.0002
A3: Low fat milk | B3: 0.0744 | C3: 0 | D3: 1.5957 | E3: 7.344 | J3: 120.6931 | K3: 6.1955 | L3: 0.0123 | M3: 47.7256 | N3: 0.0017 | O3: 5.1965 | P3: 0.0327 | Q3: 11.1977 | R3: 0.0912 | S3: 96.825 | T3: 153.6514 | U3: 0.1801 | V3: 42.9963 | W3: 0.0368 | X3: 0.469 | Y3: 0.04 | Z3: 0.1888 | AA3: 0.0233 | AB3: 53.6463 | AC3: 0.4417 | AD3: 0.3874 | AE3: 0.0773 | AF3: 13.5277 | AG3: 21.359 | AH3: 12.7238 | AI3: 8.2258 | AJ3: 0 | AK3: 0 | AL3: 0.0015 | AM3: 0.4096 | AN3: 0 | AO3: 0 | AP3: 12.0719 | AQ3: 0 | AR3: 0 | AS3: 0 | AT3: 0 | AU3: 0 | AV3: 0 | AW3: 0.0015
A4: Cheese | B4: 0.5262 | C4: 0.4705859493 | D4: 0.1208 | E4: 0.0008 | J4: 572.3382 | K4: 70.9176 | L4: 0.052 | M4: 307.1513 | N4: 0.0273 | O4: 12.1394 | P4: 0.502 | Q4: 26.0082 | R4: 0.1631 | S4: 468.7814 | T4: 172.9857 | U4: 0.3899 | V4: 916.1922 | W4: 0.0507 | X4: 1.0942 | Y4: 0.0774 | Z4: 0.0892 | AA4: 0.2328 | AB4: 182.9759 | AC4: 2.7631 | AD4: 5.0096 | AE4: 1.9392 | AF4: 83.6314 | AG4: 19.9061 | AH4: 203.3664 | AI4: 125.3811 | AJ4: 0.0234 | AK4: 0.0023 | AL4: 0.0002 | AM4: 1.8263 | AN4: 0.0048 | AO4: 0.0014 | AP4: 169.3818 | AQ4: 0 | AR4: 0 | AS4: 0 | AT4: 0 | AU4: 0 | AV4: 0.0023 | AW4: 0.0002
A5: Milk-based desserts | B5: 0.2336 | C5: 0 | D5: 0.4735 | E5: 0.0021 | G5: Cost | J5: 115.7822 | K5: 20.8786 | L5: 0.0614 | M5: 131.4621 | N5: 0.5792 | O5: 8.9646 | P5: 0.3279 | Q5: 15.716 | R5: 0.322 | S5: 98.881 | T5: 174.2701 | U5: 0.1904 | V5: 64.5188 | W5: 0.0503 | X5: 0.3656 | Y5: 0.0631 | Z5: 1.4684 | AA5: 0.2454 | AB5: 72.1126 | AC5: 0.59 | AD5: 2.1829 | AE5: 0.7913 | AF5: 13.4574 | AG5: 68.4917 | AH5: 52.6878 | AI5: 31.3595 | AJ5: 0.073 | AK5: 0.0001 | AL5: 0.0017 | AM5: 0.2988 | AN5: 0.0172 | AO5: 0.1578 | AP5: 82.9507 | AQ5: 0.0017 | AR5: 0 | AS5: 0 | AT5: 0 | AU5: 0.0001 | AV5: 0 | AW5: 0.0017
A6: Low fat milk-based desserts | B6: 0.1416 | C6: 0 | D6: 0.3701 | E6: 0.0034 | G6: =SUMPRODUCT(B2:B59,C2:C59) -> 5.523214894 | J6: 107.327 | K6: 5.0786 | L6: 0.1186 | M6: 92.5672 | N6: 0.6289 | O6: 15.8981 | P6: 0.8132 | Q6: 23.1862 | R6: 0.7716 | S6: 101.274 | T6: 184.1635 | U6: 0.1761 | V6: 51.5694 | W6: 0.0896 | X6: 0.4009 | Y6: 0.0948 | Z6: 2.6533 | AA6: 0.5649 | AB6: 69.1878 | AC6: 0.8136 | AD6: 1.7106 | AE6: 0.2405 | AF6: 14.7206 | AG6: 63.3205 | AH6: 15.7893 | AI6: 8.1903 | AJ6: 0.0545 | AK6: 0 | AL6: 0.0125 | AM6: 0.3366 | AN6: 0.0207 | AO6: 0.3059 | AP6: 40.5543 | AQ6: 0 | AR6: 0 | AS6: 0 | AT6: 0 | AU6: 0 | AV6: 0 | AW6: 0.0125
A7: Low cost red meat | B7: 0.5593 | C7: 0 | D7: 0.056 | E7: 0.0005 | J7: 24.0837 | K7: 89.1727 | L7: 0.0795 | M7: 277.6817 | N7: 0.0064 | O7: 9.7468 | P7: 2.3793 | Q7: 19.5847 | R7: 4.6971 | S7: 187.1774 | T7: 288.1673 | U7: 0.1796 | V7: 101.6397 | W7: 0.0642 | X7: 2.6354 | Y7: 0.3408 | Z7: 0.0244 | AA7: 0.4284 | AB7: 0.0328 | AC7: 5.9645 | AD7: 4.1191 | AE7: 0.7255 | AF7: 100.4131 | AG7: 0.4328 | AH7: 170.0344 | AI7: 66.0955 | AJ7: 0.0067 | AK7: 0 | AL7: 0 | AM7: 0 | AN7: 3.1412 | AO7: 0.001 | AP7: 81.1779 | AQ7: 0 | AR7: 0 | AS7: 0 | AT7: 0 | AU7: 0 | AV7: 0 | AW7: 0
A8: Regular cost red meat | B8: 0.8297 | C8: 0 | D8: 0.0561 | E8: 0.0004 | J8: 17.3745 | K8: 88.071 | L8: 0.1159 | M8: 322.9094 | N8: 0.1306 | O8: 12.2424 | P8: 2.1785 | Q8: 26.3678 | R8: 5.0938 | S8: 258.6983 | T8: 383.8068 | U8: 0.251 | V8: 518.8183 | W8: 0.2909 | X8: 1.8194 | Y8: 0.3419 | Z8: 0.1798 | AA8: 0.2587 | AB8: 3.257 | AC8: 4.3559 | AD8: 14.0795 | AE8: 1.5814 | AF8: 117.2095 | AG8: 7.2168 | AH8: 190.3331 | AI8: 69.4073 | AJ8: 0.0805 | AK8: 0.0002 | AL8: 0 | AM8: 0.0016 | AN8: 2.9136 | AO8: 0.299 | AP8: 105.8551 | AQ8: 0.0015 | AR8: 0 | AS8: 0 | AT8: 0 | AU8: 0 | AV8: 0.0002 | AW8: 0
A9: Low cost lean red meat | B9: 0.4809 | C9: 0 | D9: 0.0635 | E9: 0.2974 | J9: 18.0753 | K9: 74.6431 | L9: 0.3359 | M9: 177.4522 | N9: 0.14 | O9: 11.0227 | P9: 1.7841 | Q9: 21.3961 | R9: 5.5925 | S9: 232.4955 | T9: 339.3808 | U9: 0.3591 | V9: 890.9991 | W9: 0.5854 | X9: 2.0208 | Y9: 0.3799 | Z9: 0.1731 | AA9: 0.3997 | AB9: 110.394 | AC9: 2.839 | AD9: 9.4354 | AE9: 1.3158 | AF9: 94.4393 | AG9: 9.1342 | AH9: 67.562 | AI9: 21.4389 | AJ9: 0.1482 | AK9: 0.0003 | AL9: 0 | AM9: 0.0002 | AN9: 3.3167 | AO9: 0.7632 | AP9: 6.073 | AQ9: 0 | AR9: 0 | AS9: 0 | AT9: 0 | AU9: 0 | AV9: 0.0003 | AW9: 0
A10: Regular cost lean red meat | B10: 1.1361 | C10: 0 | D10: 0.1 | E10: 0.0016 | J10: 13.2267 | K10: 84.3457 | L10: 0.1138 | M10: 212.9754 | N10: 0.0436 | O10: 9.2999 | P10: 2.43 | Q10: 28.1463 | R10: 5.15 | S10: 237.8619 | T10: 407.535 | U10: 0.2883 | V10: 76.709 | W10: 0.3389 | X10: 2.1103 | Y10: 0.4505 | Z10: 0.1747 | AA10: 0.2178 | AB10: 1.1219 | AC10: 4.9137 | AD10: 6.3086 | AE10: 0.5453 | AF10: 118.0961 | AG10: 2.9773 | AH10: 83.6758 | AI10: 30.1982 | AJ10: 0.0547 | AK10: 0 | AL10: 0 | AM10: 0.0005 | AN10: 3.4221 | AO10: 0.2807 | AP10: 12.3772 | AQ10: 0 | AR10: 0 | AS10: 0 | AT10: 0 | AU10: 0 | AV10: 0 | AW10: 0
A11: Low cost fish | B11: 0.5266 | C11: 0 | D11: 0.0093 | E11: 0.0001 | J11: 53.4446 | K11: 81.5141 | L11: 0.2671 | M11: 215.3945 | N11: 0.4911 | O11: 26.1411 | P11: 1.0253 | Q11: 31.3632 | R11: 2.4961 | S11: 203.0637 | T11: 284.7383 | U11: 0.1684 | V11: 209.9722 | W11: 0.2121 | X11: 2.307 | Y11: 0.152 | Z11: 0.6834 | AA11: 1.0698 | AB11: 32.3709 | AC11: 1.9245 | AD11: 24.4115 | AE11: 2.3029 | AF11: 63.8021 | AG11: 38.5775 | AH11: 109.0903 | AI11: 24.5519 | AJ11: 0.6325 | AK11: 0.0026 | AL11: 0.0005 | AM11: 0.0408 | AN11: 2.3592 | AO11: 0.3567 | AP11: 60.9452 | AQ11: 0 | AR11: 0.0001 | AS11: 0 | AT11: 0 | AU11: 0 | AV11: 0.0024 | AW11: 0.0005
A12: Regular cost fish | B12: 1.0932 | C12: 0 | D12: 0.1104 | E12: 0.0017 | J12: 49.4897 | K12: 93.3441 | L12: 0.1257 | M12: 211.9115 | N12: 0.3161 | O12: 21.4527 | P12: 1.5057 | Q12: 35.6351 | R12: 3.7737 | S12: 258.808 | T12: 339.0319 | U12: 0.1287 | V12: 135.5937 | W12: 0.178 | X12: 1.9917 | Y12: 0.2202 | Z12: 1.6195 | AA12: 1.2239 | AB12: 45.5877 | AC12: 1.0215 | AD12: 25.1313 | AE12: 2.7868 | AF12: 81.9514 | AG12: 26.2712 | AH12: 99.0356 | AI12: 19.8823 | AJ12: 0.4767 | AK12: 0 | AL12: 0.0053 | AM12: 0.0066 | AN12: 2.7932 | AO12: 0.1958 | AP12: 54.5076 | AQ12: 0 | AR12: 0 | AS12: 0 | AT12: 0 | AU12: 0 | AV12: 0 | AW12: 0.0053
A13: Low cost lean fish | B13: 0.3175 | C13: 0.5511389228 | D13: 0.0169 | E13: 0.2979 | J13: 37.7452 | K13: 19.3773 | L13: 0.0642 | M13: 81.6539 | N13: 0.3163 | O13: 8.1019 | P13: 0.9318 | Q13: 17.5009 | R13: 4.7686 | S13: 106.7091 | T13: 187.9012 | U13: 0.0767 | V13: 313.3051 | W13: 0.0346 | X13: 2.7059 | Y13: 0.1544 | Z13: 1.5832 | AA13: 0.3701 | AB13: 20.4546 | AC13: 0.4818 | AD13: 2.8652 | AE13: 0.2708 | AF13: 47.3239 | AG13: 13.2731 | AH13: 18.6661 | AI13: 5.7383 | AJ13: 0.1087 | AK13: 0.1057 | AL13: 0 | AM13: 0.0295 | AN13: 1.5525 | AO13: 0.3553 | AP13: 7.1723 | AQ13: 0 | AR13: 0.0075 | AS13: 0 | AT13: 0 | AU13: 0.0512 | AV13: 0.0472 | AW13: 0
A14: Regular cost lean fish | B14: 1.1615 | C14: 0 | D14: 0.007 | E14: 0.0002 | J14: 72.2908 | K14: 119.6683 | L14: 0.3232 | M14: 130.6316 | N14: 0.0037 | O14: 16.7908 | P14: 1.702 | Q14: 42.469 | R14: 4.4968 | S14: 248.5298 | T14: 306.155 | U14: 0.0996 | V14: 422.9651 | W14: 0.0734 | X14: 2.7232 | Y14: 0.1764 | Z14: 1.3424 | AA14: 1.4276 | AB14: 35.6848 | AC14: 1.8099 | AD14: 2.5628 | AE14: 0.4321 | AF14: 92.4148 | AG14: 1.8309 | AH14: 30.3453 | AI14: 6.0189 | AJ14: 0.0042 | AK14: 0 | AL14: 0.0019 | AM14: 0 | AN14: 3.4655 | AO14: 0.211 | AP14: 2.584 | AQ14: 0 | AR14: 0 | AS14: 0 | AT14: 0 | AU14: 0 | AV14: 0 | AW14: 0.0019
A15: Low cost poultry | B15: 0.3734 | C15: 0 | D15: 0.0394 | E15: 0.0004 | J15: 17.3969 | K15: 99.0715 | L15: 0.0904 | M15: 261.7297 | N15: 0.2362 | O15: 32.8638 | P15: 1.6879 | Q15: 21.1238 | R15: 5.6296 | S15: 160.1089 | T15: 205.6844 | U15: 0.2494 | V15: 78.1879 | W15: 0.1131 | X15: 0.5101 | Y15: 0.2809 | Z15: 0.2639 | AA15: 0.5319 | AB15: 77.5954 | AC15: 2.255 | AD15: 33.8417 | AE15: 2.4896 | AF15: 91.6275 | AG15: 27.6155 | AH15: 136.4729 | AI15: 32.2643 | AJ15: 0.5527 | AK15: 0 | AL15: 0 | AM15: 0.006 | AN15: 2.6658 | AO15: 0 | AP15: 63.6891 | AQ15: 0 | AR15: 0 | AS15: 0 | AT15: 0 | AU15: 0 | AV15: 0 | AW15: 0
A16: Regular cost poultry | B16: 0.5553 | C16: 0 | D16: 0.0449 | E16: 0.0004 | J16: 17.169 | K16: 85.0203 | L16: 0.0732 | M16: 265.8504 | N16: 0.1953 | O16: 18.2635 | P16: 1.4034 | Q16: 21.9856 | R16: 7.647 | S16: 167.202 | T16: 207.8478 | U16: 0.1731 | V16: 88.4931 | W16: 0.0996 | X16: 0.2818 | Y16: 0.3904 | Z16: 0.0092 | AA16: 0.4925 | AB16: 33.673 | AC16: 1.6643 | AD16: 31.9977 | AE16: 2.3403 | AF16: 99.0222 | AG16: 22.5105 | AH16: 138.1526 | AI16: 33.8245 | AJ16: 0.4499 | AK16: 0 | AL16: 0.0001 | AM16: 0.0048 | AN16: 2.7356 | AO16: 0.0092 | AP16: 70.6024 | AQ16: 0 | AR16: 0 | AS16: 0 | AT16: 0 | AU16: 0 | AV16: 0 | AW16: 0.0001
A17: Low cost lean poultry | B17: 0.3806 | C17: 0 | D17: 0.0143 | E17: 0.5348 | J17: 15.6286 | K17: 135.6944 | L17: 0.1155 | M17: 161.0636 | N17: 0.2054 | O17: 32.3382 | P17: 2.0058 | Q17: 18.9787 | R17: 4.8115 | S17: 171.1657 | T17: 243.0852 | U17: 0.2695 | V17: 117.8785 | W17: 0.0684 | X17: 1.0799 | Y17: 0.304 | Z17: 2.47 | AA17: 0.2923 | AB17: 188.1466 | AC17: 2.7944 | AD17: 10.8328 | AE17: 0.5293 | AF17: 92.6293 | AG17: 6.4751 | AH17: 57.0522 | AI17: 16.0251 | AJ17: 0.0002 | AK17: 0.1041 | AL17: 0 | AM17: 0 | AN17: 2.9124 | AO17: 0 | AP17: 0.8109 | AQ17: 0 | AR17: 0 | AS17: 0.0131 | AT17: 0 | AU17: 0.0779 | AV17: 0.0131 | AW17: 0
A18: Regular cost lean poultry | B18: 0.6456 | C18: 0 | D18: 0.1216 | E18: 0.0035 | J18: 14.6358 | K18: 75.6103 | L18: 0.0631 | M18: 227.7658 | N18: 0 | O18: 19.3711 | P18: 1.0955 | Q18: 24.2924 | R18: 8.2116 | S18: 222.906 | T18: 256.6082 | U18: 0.1519 | V18: 231.9552 | W18: 0.0806 | X18: 0.3024 | Y18: 0.3877 | Z18: 0 | AA18: 0.6583 | AB18: 10.8212 | AC18: 1.627 | AD18: 16.2394 | AE18: 1.0699 | AF18: 97.6919 | AG18: 21.9911 | AH18: 102.9849 | AI18: 25.0005 | AJ18: 0.4212 | AK18: 0 | AL18: 0 | AM18: 0 | AN18: 2.978 | AO18: 6.0911 | AP18: 5.6097 | AQ18: 0 | AR18: 0 | AS18: 0 | AT18: 0 | AU18: 0 | AV18: 0 | AW18: 0
A19: Lunch meat | B19: 0.4201 | C19: 0 | D19: 0.0799 | E19: 0.0003 | J19: 24.5786 | K19: 66.2366 | L19: 0.1168 | M19: 325.6126 | N19: 0.3196 | O19: 4.3757 | P19: 1.4886 | Q19: 14.6202 | R19: 3.5071 | S19: 144.8117 | T19: 217.7679 | U19: 0.1899 | V19: 1016.0999 | W19: 0.2107 | X19: 1.5936 | Y19: 0.2032 | Z19: 0.6754 | AA19: 0.2945 | AB19: 41.0744 | AC19: 2.4235 | AD19: 18.9721 | AE19: 1.7639 | AF19: 58.7055 | AG19: 11.0183 | AH19: 252.2971 | AI19: 92.8475 | AJ19: 0.0001 | AK19: 0 | AL19: 0 | AM19: 0.0014 | AN19: 2.7979 | AO19: 0.1745 | AP19: 167.7553 | AQ19: 0 | AR19: 0 | AS19: 0 | AT19: 0 | AU19: 0 | AV19: 0 | AW19: 0
A20: Low fat lunch meat | B20: 0.8032 | C20: 0 | D20: 0.0952 | E20: 0.0017 | J20: 21.2759 | K20: 53.8556 | L20: 0.0808 | M20: 166.5285 | N20: 0.0441 | O20: 4.7461 | P20: 1.2619 | Q20: 17.6215 | R20: 4.5975 | S20: 195.9795 | T20: 278.4997 | U20: 0.2114 | V20: 1059.4191 | W20: 0.4635 | X20: 0.6684 | Y20: 0.3077 | Z20: 0.2951 | AA20: 0.2356 | AB20: 5.2069 | AC20: 2.0045 | AD20: 10.1961 | AE20: 0.9072 | AF20: 72.6507 | AG20: 12.0374 | AH20: 78.0892 | AI20: 24.9336 | AJ20: 0 | AK20: 0 | AL20: 0 | AM20: 0 | AN20: 3.4751 | AO20: 0.001 | AP20: 14.8746 | AQ20: 0 | AR20: 0 | AS20: 0 | AT20: 0 | AU20: 0 | AV20: 0 | AW20: 0
A21: Eggs | B21: 0.1906 | C21: 0 | D21: 0.2561 | E21: 0.0031 | J21: 72.7591 | K21: 337.958 | L21: 0.0795 | M21: 177.9579 | N21: 0.0646 | O21: 32.1475 | P21: 1.5227 | Q21: 12.6724 | R21: 0.3793 | S21: 185.1287 | T21: 153.2592 | U21: 0.4145 | V21: 240.0405 | W21: 0.0836 | X21: 0.9718 | Y21: 0.1301 | Z21: 0.359 | AA21: 1.1156 | AB21: 137.844 | AC21: 1.1161 | AD21: 20.0706 | AE21: 1.3143 | AF21: 47.6151 | AG21: 10.4129 | AH21: 116.9229 | AI21: 36.1512 | AJ21: 0.0632 | AK21: 0.012 | AL21: 0.0002 | AM21: 0.0968 | AN21: 1.7279 | AO21: 0.589 | AP21: 60.3887 | AQ21: 0 | AR21: 0 | AS21: 0 | AT21: 0 | AU21: 0.003 | AV21: 0.009 | AW21: 0.0002
A22: Meat mixtures | B22: 0.3607 | C22: 0 | D22: 0.4014 | E22: 0.0038 | J22: 72.6623 | K22: 41.0489 | L22: 0.1049 | M22: 226.012 | N22: 0.9037 | O22: 46.2964 | P22: 1.7411 | Q22: 18.8141 | R22: 3.3524 | S22: 129.955 | T22: 206.1031 | U22: 0.1862 | V22: 391.5984 | W22: 0.1379 | X22: 0.8161 | Y22: 0.1824 | Z22: 2.4829 | AA22: 0.562 | AB22: 27.8161 | AC22: 2.0249 | AD22: 17.0683 | AE22: 1.8839 | AF22: 51.7459 | AG22: 62.687 | AH22: 109.5765 | AI22: 37.1658 | AJ22: 1.0288 | AK22: 0.1478 | AL22: 0.0013 | AM22: 0.0839 | AN22: 1.1879 | AO22: 2.1041 | AP22: 59.2402 | AQ22: 0.0023 | AR22: 0.0034 | AS22: 0.0041 | AT22: 0.0002 | AU22: 0.0151 | AV22: 0.1252 | AW22: 0.0013
A23: Low fat meat mixtures | B23: 1.3504 | C23: 0 | D23: 0.5428 | E23: 0.008 | J23: 20.9429 | K23: 25.8492 | L23: 0.1042 | M23: 111.1427 | N23: 1.1405 | O23: 19.2453 | P23: 1.1718 | Q23: 17.2409 | R23: 2.6375 | S23: 87.6274 | T23: 225.9219 | U23: 0.1006 | V23: 260.0567 | W23: 0.0837 | X23: 0.5576 | Y23: 0.1679 | Z23: 5.3845 | AA23: 0.6345 | AB23: 31.7522 | AC23: 1.3147 | AD23: 8.7774 | AE23: 0.9385 | AF23: 37.1708 | AG23: 33.2556 | AH23: 40.1852 | AI23: 10.8482 | AJ23: 0.1671 | AK23: 0.2394 | AL23: 0.0034 | AM23: 0.0022 | AN23: 1.0618 | AO23: 1.4024 | AP23: 8.3428 | AQ23: 0.0002 | AR23: 0.0054 | AS23: 0.0158 | AT23: 0.0165 | AU23: 0.0639 | AV23: 0.1545 | AW23: 0.0034
A24: Legumes | B24: 0.1192 | C24: 1.007123488 | D24: 0.2198 | E24: 1.1002 | J24: 36.9402 | K24: 2.8093 | L24: 0.2075 | M24: 136.4589 | N24: 4.9139 | O24: 69.846 | P24: 1.7561 | Q24: 38.1414 | R24: 0.7349 | S24: 111.2914 | T24: 308.8805 | U24: 0.075 | V24: 210.3162 | W24: 0.1369 | X24: 0.1082 | Y24: 0.1326 | Z24: 1.5711 | AA24: 0.6893 | AB24: 7.382 | AC24: 1.2372 | AD24: 13.6855 | AE24: 1.9758 | AF24: 27.4938 | AG24: 69.8117 | AH24: 42.9749 | AI24: 9.3853 | AJ24: 0.0152 | AK24: 0.4681 | AL24: 0.0001 | AM24: 0.0006 | AN24: 0.1565 | AO24: 0.6301 | AP24: 30.1668 | AQ24: 0.0018 | AR24: 0.0024 | AS24: 0.0033 | AT24: 0.4263 | AU24: 0.0014 | AV24: 0.0347 | AW24: 0.0001
A25: Nuts and seeds | B25: 0.4353 | C25: 0.7845987542 | D25: 0.024 | E25: 0.2768 | J25: 65.6867 | K25: 0 | L25: 0.8286 | M25: 537.2384 | N25: 6.3593 | O25: 78.3262 | P25: 3.0911 | Q25: 190.1516 | R25: 8.9044 | S25: 414.2636 | T25: 599.0935 | U25: 0.1644 | V25: 389.3302 | W25: 0.2362 | X25: 0 | Y25: 0.3638 | Z25: 0.6798 | AA25: 7.5892 | AB25: 1.3978 | AC25: 3.3967 | AD25: 122.7602 | AE25: 1.4117 | AF25: 85.4808 | AG25: 81.3933 | AH25: 409.2045 | AI25: 66.8827 | AJ25: 0.0311 | AK25: 0 | AL25: 0.0158 | AM25: 0 | AN25: 6.5337 | AO25: 28.8906 | AP25: 10.5085 | AQ25: 0 | AR25: 0 | AS25: 0 | AT25: 0 | AU25: 0 | AV25: 0 | AW25: 0.0158
A26: Whole grain breads | B26: 0.2286 | C26: 0 | D26: 0.01 | E26: 0.2856 | J26: 66.5763 | K26: 4.5258 | L26: 0.2497 | M26: 270.7375 | N26: 6.2234 | O26: 90.7663 | P26: 3.1012 | Q26: 75.6644 | R26: 3.8114 | S26: 199.2337 | T26: 288.4822 | U26: 0.2461 | V26: 445.9476 | W26: 0.2916 | X26: 0.0534 | Y26: 0.2328 | Z26: 0.0919 | AA26: 0.6255 | AB26: 4.2555 | AC26: 1.5091 | AD26: 17.9992 | AE26: 1.9366 | AF26: 36.1081 | AG26: 197.4896 | AH26: 47.9046 | AI26: 8.744 | AJ26: 3.2593 | AK26: 0 | AL26: 0.0018 | AM26: 0 | AN26: 0 | AO26: 2.4517 | AP26: 32.9728 | AQ26: 2.4779 | AR26: 0 | AS26: 0 | AT26: 0 | AU26: 0 | AV26: 0 | AW26: 0.0018
A27: Non-whole grain breads | B27: 0.241 | C27: 0.1001821363 | D27: 0.898 | E27: 0.0144 | J27: 120.6393 | K27: 6.6187 | L27: 0.1807 | M27: 276.6318 | N27: 2.9968 | O27: 147.7179 | P27: 3.0527 | Q27: 29.2098 | R27: 3.6307 | S27: 154.4993 | T27: 130.3339 | U27: 0.295 | V27: 517.0706 | W27: 0.3823 | X27: 0.1089 | Y27: 0.0953 | Z27: 0.0647 | AA27: 0.3535 | AB27: 12.5602 | AC27: 0.7695 | AD27: 14.6419 | AE27: 1.2921 | AF27: 32.0607 | AG27: 195.3891 | AH27: 48.5264 | AI27: 10.241 | AJ27: 3.5358 | AK27: 0.0003 | AL27: 0.0048 | AM27: 0.0021 | AN27: 0.0141 | AO27: 1.3866 | AP27: 33.9962 | AQ27: 0.104 | AR27: 0 | AS27: 0 | AT27: 0.0004 | AU27: 0.0001 | AV27: 0.0001 | AW27: 0.0048
A28: Non-whole grain cereals | B28: 0.2109 | C28: 0 | D28: 0.3089 | E28: 0.0016 | J28: 88.2898 | K28: 1.9885 | L28: 0.0757 | M28: 240.0223 | N28: 2.1046 | O28: 454.431 | P28: 11.4324 | Q28: 21.151 | R28: 9.728 | S28: 80.7115 | T28: 93.2896 | U28: 0.842 | V28: 379.5783 | W28: 0.7442 | X28: 2.6877 | Y28: 0.9924 | Z28: 12.9426 | AA28: 0.4522 | AB28: 260.7912 | AC28: 2.9322 | AD28: 4.7543 | AE28: 0.308 | AF28: 15.4049 | AG28: 210.2688 | AH28: 21.2396 | AI28: 6.6578 | AJ28: 1.6636 | AK28: 0 | AL28: 0.0017 | AM28: 0.0117 | AN28: 0.0081 | AO28: 0.1952 | AP28: 67.2451 | AQ28: 0.0887 | AR28: 0 | AS28: 0 | AT28: 0 | AU28: 0 | AV28: 0 | AW28: 0.0017
A29: Whole grain low calorie cereals | B29: 0.1584 | C29: 0.1442604146 | D29: 0.2106 | E29: 0.147 | J29: 97.1194 | K29: 1.5693 | L29: 0.1053 | M29: 152.3942 | N29: 3.5897 | O29: 222.5019 | P29: 6.3043 | Q29: 54.3051 | R29: 3.8033 | S29: 158.6131 | T29: 160.4739 | U29: 0.3453 | V29: 182.0401 | W29: 0.3398 | X29: 1.0457 | Y29: 0.4388 | Z29: 4.3392 | AA29: 0.2176 | AB29: 110.9235 | AC29: 2.9935 | AD29: 6.4337 | AE29: 0.3381 | AF29: 21.7421 | AG29: 117.155 | AH29: 21.6554 | AI29: 5.753 | AJ29: 1.5265 | AK29: 0 | AL29: 0.0004 | AM29: 0 | AN29: 0 | AO29: 0.0114 | AP29: 3.2844 | AQ29: 0.928 | AR29: 0 | AS29: 0 | AT29: 0 | AU29: 0 | AV29: 0 | AW29: 0.0004
A30: Whole grain cereals | B30: 0.3625 | C30: 0 | D30: 0.1107 | E30: 0.0013 | J30: 110.2426 | K30: 1.4547 | L30: 0.157 | M30: 217.8779 | N30: 4.4575 | O30: 348.281 | P30: 9.7954 | Q30: 57.0972 | R30: 7.9248 | S30: 180 | T30: 197.5481 | U30: 0.6954 | V30: 247.0271 | W30: 0.6207 | X30: 2.1664 | Y30: 0.8509 | Z30: 6.1968 | AA30: 1.3479 | AB30: 231.1449 | AC30: 4.5059 | AD30: 9.3807 | AE30: 0.6033 | AF30: 21.7218 | AG30: 175.9338 | AH30: 32.6255 | AI30: 8.1514 | AJ30: 1.4941 | AK30: 0 | AL30: 0.021 | AM30: 0 | AN30: 0.0298 | AO30: 0.341 | AP30: 60.8466 | AQ30: 1.1386 | AR30: 0 | AS30: 0 | AT30: 0 | AU30: 0 | AV30: 0 | AW30: 0.021
A31: Whole grain rice and pasta | B31: 0.0781 | C31: 4.928457073 | D31: 0.0136 | E31: 2.1743 | J31: 9.8101 | K31: 0 | L31: 0.0997 | M31: 112.5155 | N31: 1.7865 | O31: 5.0447 | P31: 0.4274 | Q31: 41.964 | R31: 1.4999 | S31: 81.9946 | T31: 45.5256 | U31: 0.033 | V31: 6.5876 | W31: 0.0962 | X31: 0 | Y31: 0.1385 | Z31: 0 | AA31: 0.0847 | AB31: 0.4403 | AC31: 0.66 | AD31: 4.1884 | AE31: 0.2627 | AF31: 10.4926 | AG31: 90.4625 | AH31: 11.0496 | AI31: 1.9825 | AJ31: 1.0431 | AK31: 0 | AL31: 0 | AM31: 0 | AN31: 0 | AO31: 0 | AP31: 1.5808 | AQ31: 1.0431 | AR31: 0 | AS31: 0 | AT31: 0 | AU31: 0 | AV31: 0 | AW31: 0
A32: Non-whole grain rice and pasta | B32: 0.0423 | C32: 0 | D32: 0.287 | E32: 0.166 | J32: 10.626 | K32: 2.5245 | L32: 0.0746 | M32: 135.5989 | N32: 0.6727 | O32: 96.5371 | P32: 1.1787 | Q32: 12.6515 | R32: 1.3891 | S32: 43.6596 | T32: 32.2668 | U32: 0.0354 | V32: 15.3964 | W32: 0.1574 | X32: 0.0072 | Y32: 0.0654 | Z32: 0.0254 | AA32: 0.1785 | AB32: 3.5345 | AC32: 0.4618 | AD32: 4.6805 | AE32: 0.4934 | AF32: 12.0544 | AG32: 105.9125 | AH32: 14.61 | AI32: 3.0666 | AJ32: 1.2638 | AK32: 0.0009 | AL32: 0 | AM32: 0.0025 | AN32: 0 | AO32: 0.3905 | AP32: 4.8982 | AQ32: 0.0032 | AR32: 0 | AS32: 0 | AT32: 0 | AU32: 0 | AV32: 0.0009 | AW32: 0
A33: Whole grain cakes and pies | B33: 0.6455 | C33: 0 | D33: 0.0276 | E33: 0.0001 | J33: 43.2674 | K33: 32.6404 | L33: 0.1794 | M33: 371.9551 | N33: 1.8559 | O33: 61.3725 | P33: 2.645 | Q33: 30.1255 | R33: 2.5387 | S33: 134.5639 | T33: 143.3762 | U33: 0.2689 | V33: 415.1323 | W33: 0.2216 | X33: 0.1454 | Y33: 0.1888 | Z33: 0.4663 | AA33: 0.8338 | AB33: 105.7582 | AC33: 0.8453 | AD33: 27.2123 | AE33: 2.5071 | AF33: 32.1372 | AG33: 211.2492 | AH33: 131.4725 | AI33: 48.7384 | AJ33: 1.6602 | AK33: 0 | AL33: 0.0319 | AM33: 0.0382 | AN33: 0.0282 | AO33: 0.2412 | AP33: 201.1159 | AQ33: 0.9492 | AR33: 0 | AS33: 0 | AT33: 0 | AU33: 0 | AV33: 0 | AW33: 0.0319
A34: Non-whole grain cakes and pies | B34: 0.2914 | C34: 0 | D34: 0.4142 | E34: 0.0011 | J34: 55.7975 | K34: 26.1997 | L34: 0.1537 | M34: 373.0752 | N34: 1.6417 | O34: 76.371 | P34: 2.1302 | Q34: 22.9603 | R34: 2.0744 | S34: 103.3189 | T34: 121.439 | U34: 0.2215 | V34: 290.3495 | W34: 0.2099 | X34: 0.2066 | Y34: 0.0939 | Z34: 1.72 | AA34: 0.8476 | AB34: 67.0996 | AC34: 0.6364 | AD34: 33.0436 | AE34: 2.685 | AF34: 19.0435 | AG34: 218.9977 | AH34: 142.5803 | AI34: 35.425 | AJ34: 1.754 | AK34: 0.0051 | AL34: 0.0486 | AM34: 0.0076 | AN34: 0.0881 | AO34: 1.3132 | AP34: 210.1939 | AQ34: 0.0319 | AR34: 0 | AS34: 0.0048 | AT34: 0.0001 | AU34: 0.0003 | AV34: 0 | AW34: 0.0486
A35: Whole grain snacks | B35: 0.4697 | C35: 0 | D35: 0.0193 | E35: 0.0004 | J35: 24.6731 | K35: 7.0463 | L35: 0.2477 | M35: 477.6473 | N35: 8.7031 | O35: 33.8026 | P35: 2.5921 | Q35: 92.4988 | R35: 2.2465 | S35: 218.1698 | T35: 208.4315 | U35: 0.1487 | V35: 683.8156 | W35: 0.1813 | X35: 0.0085 | Y35: 0.1587 | Z35: 0.1458 | AA35: 2.9802 | AB35: 25.8863 | AC35: 2.196 | AD35: 70.5648 | AE35: 4.235 | AF35: 34.0126 | AG35: 250.8534 | AH35: 206.2019 | AI35: 49.0679 | AJ35: 2.8989 | AK35: 0.0249 | AL35: 0 | AM35: 0.006 | AN35: 0.0661 | AO35: 12.809 | AP35: 95.8146 | AQ35: 2.6839 | AR35: 0 | AS35: 0 | AT35: 0 | AU35: 0.0249 | AV35: 0 | AW35: 0
A36: Non-whole grain snacks | B36: 0.4927 | C36: 0 | D36: 0.0674 | E36: 0.5141 | J36: 107.341 | K36: 1.4417 | L36: 0.1549 | M36: 486.8107 | N36: 3.7861 | O36: 117.4289 | P36: 2.9911 | Q36: 50.2077 | R36: 3.1834 | S36: 167.7209 | T36: 174.4437 | U36: 0.3209 | V36: 877.8997 | W36: 0.2787 | X36: 0.0747 | Y36: 0.1906 | Z36: 0.2048 | AA36: 2.301 | AB36: 7.2891 | AC36: 1.0634 | AD36: 42.8637 | AE36: 3.0321 | AF36: 31.9164 | AG36: 253.8584 | AH36: 207.0143 | AI36: 39.1363 | AJ36: 4.5353 | AK36: 0.0011 | AL36: 0 | AM36: 0.0434 | AN36: 0.0575 | AO36: 15.6353 | AP36: 45.3863 | AQ36: 0.0229 | AR36: 0 | AS36: 0 | AT36: 0 | AU36: 0.0006 | AV36: 0.0005 | AW36: 0
A37: Grain mixtures | B37: 0.2103 | C37: 0 | D37: 0.3055 | E37: 0.0026 | J37: 130.6901 | K37: 25.5995 | L37: 0.1167 | M37: 236.8619 | N37: 1.5965 | O37: 70.471 | P37: 1.8172 | Q37: 22.1886 | R37: 2.2074 | S37: 151.1351 | T37: 176.2098 | U37: 0.203 | V37: 316.7928 | W37: 0.2044 | X37: 0.3844 | Y37: 0.1094 | Z37: 3.7223 | AA37: 0.6149 | AB37: 39.6549 | AC37: 1.3402 | AD37: 12.9526 | AE37: 1.3094 | AF37: 39.8989 | AG37: 97.3665 | AH37: 98.8923 | AI37: 38.0941 | AJ37: 1.4909 | AK37: 0.1694 | AL37: 0.0012 | AM37: 0.337 | AN37: 0.3915 | AO37: 0.9051 | AP37: 68.7232 | AQ37: 0.0001 | AR37: 0.0002 | AS37: 0.0006 | AT37: 0.014 | AU37: 0.0024 | AV37: 0.166 | AW37: 0.0012
A38: Low fat grain mixtures | B38: 1.1507 | C38: 0 | D38: 0.5071 | E38: 0.0066 | J38: 18.2615 | K38: 7.3579 | L38: 0.0751 | M38: 90.483 | N38: 0.8739 | O38: 41.137 | P38: 0.9153 | Q38: 11.4196 | R38: 1.1511 | S38: 41.9906 | T38: 101.7856 | U38: 0.0651 | V38: 224.172 | W38: 0.0914 | X38: 0.0938 | Y38: 0.0571 | Z38: 2.1164 | AA38: 0.4543 | AB38: 13.9931 | AC38: 0.4227 | AD38: 5.2745 | AE38: 0.4131 | AF38: 13.3683 | AG38: 52.8631 | AH38: 23.9712 | AI38: 7.291 | AJ38: 0.5962 | AK38: 0.1154 | AL38: 0.0001 | AM38: 0.017 | AN38: 0.1906 | AO38: 0.3435 | AP38: 15.2648 | AQ38: 0.0028 | AR38: 0.0014 | AS38: 0.0014 | AT38: 0.0124 | AU38: 0.0012 | AV38: 0.1115 | AW38: 0.0001
A39: Citrus, melon and berry juice | B39: 0.1986 | C39: 0 | D39: 0.8807 | E39: 0.2708 | J39: 8.8003 | K39: 0.0011 | L39: 0.0575 | M39: 42.421 | N39: 0.2005 | O39: 21.9364 | P39: 0.3642 | Q39: 10.9617 | R39: 0.2914 | S39: 14.147 | T39: 175.2525 | U39: 0.0269 | V39: 2.0995 | W39: 0.0614 | X39: 0.0002 | Y39: 0.0765 | Z39: 34.4845 | AA39: 0.2024 | AB39: 8.365 | AC39: 0.0736 | AD39: 0.2682 | AE39: 0.0994 | AF39: 2.3815 | AG39: 39.9358 | AH39: 1.2106 | AI39: 0.1571 | AJ39: 0 | AK39: 0 | AL39: 0.4011 | AM39: 0.0001 | AN39: 0 | AO39: 0 | AP39: 0.4535 | AQ39: 0 | AR39: 0 | AS39: 0 | AT39: 0 | AU39: 0 | AV39: 0 | AW39: 0
A40: Citrus, melon and berries | B40: 0.2459 | C40: 2.458010545 | D40: 0.4859 | E40: 0.0191 | J40: 15.5932 | K40: 0 | L40: 0.0399 | M40: 36.477 | N40: 1.1701 | O40: 14.4698 | P40: 0.2098 | Q40: 10.2219 | R40: 0.3241 | S40: 12.7604 | T40: 162.5212 | U40: 0.0243 | V40: 4.4463 | W40: 0.0464 | X40: 0 | Y40: 0.0538 | Z40: 28.1418 | AA40: 0.1098 | AB40: 45.7783 | AC40: 0.109 | AD40: 0.3697 | AE40: 0.1613 | AF40: 2.9211 | AG40: 36.601 | AH40: 1.4453 | AI40: 0.2146 | AJ40: 0.0001 | AK40: 0 | AL40: 0.6049 | AM40: 0.0001 | AN40: 0 | AO40: 0.0002 | AP40: 1.0006 | AQ40: 0 | AR40: 0 | AS40: 0 | AT40: 0 | AU40: 0 | AV40: 0 | AW40: 0.6049
A41: Other fruit juice | B41: 0.1435 | C41: 0 | D41: 0.2923 | E41: 0.0292 | J41: 9.2126 | K41: 0 | L41: 0.0328 | M41: 50.9694 | N41: 0.1861 | O41: 4.4171 | P41: 0.3207 | Q41: 6.0481 | R41: 0.1836 | S41: 8.8964 | T41: 125.0669 | U41: 0.0251 | V41: 2.8013 | W41: 0.0277 | X41: 0 | Y41: 0.0487 | Z41: 12.6865 | AA41: 0.0682 | AB41: 1.4311 | AC41: 0.0484 | AD41: 0.2432 | AE41: 0.0904 | AF41: 1.0508 | AG41: 50.4639 | AH41: 0.9334 | AI41: 0.1918 | AJ41: 0 | AK41: 0.0001 | AL41: 0.3992 | AM41: 0 | AN41: 0 | AO41: 0.0001 | AP41: 1.9771 | AQ41: 0 | AR41: 0 | AS41: 0.0001 | AT41: 0 | AU41: 0 | AV41: 0 | AW41: 0
A42: Other fruits | B42: 0.2172 | C42: 0 | D42: 0.8826 | E42: 1.9729 | J42: 8.1269 | K42: 0.0197 | L42: 0.0782 | M42: 75.9397 | N42: 2.3401 | O42: 10.6579 | P42: 0.2719 | Q42: 13.8385 | R42: 0.45 | S42: 18.9775 | T42: 222.8567 | U42: 0.0511 | V42: 2.4841 | W42: 0.0325 | X42: 0.0001 | Y42: 0.1508 | Z42: 8.3242 | AA42: 0.3146 | AB42: 6.8351 | AC42: 0.1214 | AD42: 1.0222 | AE42: 0.1807 | AF42: 3.0107 | AG42: 73.8735 | AH42: 7.0799 | AI42: 1.3162 | AJ42: 0.0003 | AK42: 0.0002 | AL42: 0.72 | AM42: 0.0006 | AN42: 0.0008 | AO42: 0.0259 | AP42: 4.8032 | AQ42: 0 | AR42: 0 | AS42: 0 | AT42: 0 | AU42: 0 | AV42: 0.0001 | AW42: 0.72
A43: Potatoes | B43: 0.2293 | C43: 0 | D43: 0.1438 | E43: 0.0032 | J43: 17.0227 | K43: 3.1914 | L43: 0.1921 | M43: 305.1389 | N43: 3.154 | O43: 14.9447 | P43: 0.9108 | Q43: 36.9128 | R43: 2.5079 | S43: 107.2531 | T43: 663.0523 | U43: 0.0638 | V43: 209.3449 | W43: 0.1118 | X43: 0.0103 | Y43: 0.3812 | Z43: 14.2959 | AA43: 2.1735 | AB43: 2.6235 | AC43: 0.5174 | AD43: 36.9539 | AE43: 2.1324 | AF43: 16.0547 | AG43: 142.3289 | AH43: 151.0136 | AI43: 36.1776 | AJ43: 0.0084 | AK43: 0.7914 | AL43: 0 | AM43: 0.0047 | AN43: 0.0147 | AO43: 7.0681 | AP43: 75.1095 | AQ43: 0.002 | AR43: 0 | AS43: 0 | AT43: 0 | AU43: 0.7725 | AV43: 0.0188 | AW43: 0
A44: Low fat potatoes | B44: 0.1047 | C44: 0.381387329 | D44: 0.3688 | E44: 0.3461 | J44: 23.7472 | K44: 2.9983 | L44: 0.1295 | M44: 98.6292 | N44: 1.5543 | O44: 10.5161 | P44: 0.4037 | Q44: 19.3646 | R44: 1.1302 | S44: 52.288 | T44: 323.464 | U44: 0.0438 | V44: 73.7422 | W44: 0.0942 | X44: 0.0469 | Y44: 0.2319 | Z44: 8.7679 | AA44: 0.1604 | AB44: 24.0174 | AC44: 0.306 | AD44: 4.4614 | AE44: 0.5315 | AF44: 8.6759 | AG44: 69.0133 | AH44: 22.8692 | AI44: 8.09 | AJ44: 0.0073 | AK44: 0.592 | AL44: 0 | AM44: 0.0525 | AN44: 0.0136 | AO44: 0.0584 | AP44: 17.9655 | AQ44: 0 | AR44: 0 | AS44: 0 | AT44: 0 | AU44: 0.5891 | AV44: 0.0029 | AW44: 0
A45: Dark green vegetables | B45: 0.3686 | C45: 1.869431296 | D45: 0.0892 | E45: 0.0039 | J45: 108.8516 | K45: 1.8555 | L45: 0.1188 | M45: 46.3764 | N45: 2.8831 | O45: 86.884 | P45: 1.0564 | Q45: 24.2949 | R45: 0.5292 | S45: 43.2283 | T45: 214.8093 | U45: 0.0958 | V45: 54.2708 | W45: 0.0514 | X45: 0.0121 | Y45: 0.1461 | Z45: 29.4995 | AA45: 1.5881 | AB45: 330.7707 | AC45: 0.3034 | AD45: 3.794 | AE45: 1.0894 | AF45: 9.4744 | AG45: 20.1086 | AH45: 22.3058 | AI45: 6.4472 | AJ45: 0.0127 | AK45: 0.6172 | AL45: 0 | AM45: 0.0132 | AN45: 0 | AO45: 0 | AP45: 18.0769 | AQ45: 0 | AR45: 0.6161 | AS45: 0 | AT45: 0 | AU45: 0 | AV45: 0.0011 | AW45: 0
A46: Orange vegetables | B46: 0.1678 | C46: 0 | D46: 0.036 | E46: 0.0004 | J46: 28.6178 | K46: 2.2229 | L46: 0.0681 | M46: 94.1599 | N46: 2.6519 | O46: 10.619 | P46: 0.5733 | Q46: 12.6219 | R46: 0.5861 | S46: 31.2168 | T46: 236.9035 | U46: 0.049 | V46: 75.0558 | W46: 0.0519 | X46: 0.0113 | Y46: 0.125 | Z46: 6.6501 | AA46: 1.1235 | AB46: 656.2516 | AC46: 0.2081 | AD46: 9.2196 | AE46: 1.0384 | AF46: 3.8574 | AG46: 62.2358 | AH46: 30.9017 | AI46: 8.1675 | AJ46: 0 | AK46: 0.5619 | AL46: 0.0153 | AM46: 0.006 | AN46: 0.0015 | AO46: 0.7022 | AP46: 38.0595 | AQ46: 0 | AR46: 0 | AS46: 0.5619 | AT46: 0 | AU46: 0 | AV46: 0 | AW46: 0.0153
A47: Dark green vegetables, no fat | B47: 0.3621 | C47: 6.168148913 | D47: 0.0733 | E47: 2.6543 | J47: 64.1576 | K47: 0 | L47: 0.0721 | M47: 28.5702 | N47: 2.9173 | O47: 86.2391 | P47: 1.0175 | Q47: 27.3981 | R47: 0.5166 | S47: 53.2593 | T47: 262.5123 | U47: 0.1125 | V47: 32.4734 | W47: 0.0634 | X47: 0 | Y47: 0.1519 | Z47: 44.9615 | AA47: 1.3133 | AB47: 169.3681 | AC47: 0.3956 | AD47: 0.2958 | AE47: 0.6312 | AF47: 10.5137 | AG47: 21.9638 | AH47: 2.5309 | AI47: 0.4159 | AJ47: 0 | AK47: 0.7745 | AL47: 0 | AM47: 0 | AN47: 0 | AO47: 0 | AP47: 0 | AQ47: 0 | AR47: 0.7745 | AS47: 0 | AT47: 0 | AU47: 0 | AV47: 0 | AW47: 0
A48: Orange vegetables, no fat | B48: 0.1868 | C48: 1.452985845 | D48: 0.0967 | E48: 0.196 | J48: 31.4285 | K48: 0.0014 | L48: 0.0606 | M48: 46.5219 | N48: 2.8497 | O48: 15.846 | P48: 0.4097 | Q48: 13.7228 | R48: 0.904 | S48: 35.8335 | T48: 324.9471 | U48: 0.0628 | V48: 57.8701 | W48: 0.0686 | X48: 0.0002 | Y48: 0.1599 | Z48: 7.8608 | AA48: 0.7164 | AB48: 653.4229 | AC48: 0.2409 | AD48: 0.8653 | AE48: 0.13 | AF48: 4.1375 | AG48: 43.2367 | AH48: 2.1092 | AI48: 0.3659 | AJ48: 0 | AK48: 0.6823 | AL48: 0 | AM48: 0.0001 | AN48: 0 | AO48: 0 | AP48: 0.1607 | AQ48: 0 | AR48: 0 | AS48: 0.6823 | AT48: 0 | AU48: 0 | AV48: 0 | AW48: 0
A49: Other vegetables | B49: 0.2228 | C49: 2.990574337e-08 | D49: 0.3532 | E49: 0.0072 | J49: 38.6516 | K49: 1.6097 | L49: 0.0784 | M49: 75.8819 | N49: 2.3307 | O49: 35.5303 | P49: 0.7148 | Q49: 20.6424 | R49: 0.7609 | S49: 47.9788 | T49: 195.6622 | U49: 0.0905 | V49: 97.8595 | W49: 0.0782 | X49: 0.0235 | Y49: 0.093 | Z49: 12.3373 | AA49: 0.4123 | AB49: 38.1429 | AC49: 0.3838 | AD49: 8.0907 | AE49: 1.1471 | AF49: 9.2849 | AG49: 42.9631 | AH49: 29.6108 | AI49: 7.4354 | AJ49: 0.0204 | AK49: 0.5675 | AL49: 0.0145 | AM49: 0.0301 | AN49: 0.0001 | AO49: 0.3475 | AP49: 18.8532 | AQ49: 0 | AR49: 0.011 | AS49: 0 | AT49: 0 | AU49: 0.1799 | AV49: 0.3765 | AW49: 0.0145
A50: Tomatoes | B50: 0.1671 | C50: 1.168795103 | D50: 0.0015 | E50: 0.016 | J50: 34.7197 | K50: 1.9111 | L50: 0.1084 | M50: 57.8858 | N50: 1.057 | O50: 10.2826 | P50: 0.7501 | Q50: 13.3087 | R50: 0.8762 | S50: 41.0288 | T50: 250.1085 | U50: 0.0671 | V50: 376.7509 | W50: 0.0495 | X50: 0.0627 | Y50: 0.0927 | Z50: 13.9916 | AA50: 1.5441 | AB50: 41.3692 | AC50: 0.2325 | AD50: 5.2747 | AE50: 0.5253 | AF50: 7.0811 | AG50: 34.5482 | AH50: 17.9552 | AI50: 4.3951 | AJ50: 0.0726 | AK50: 0.573 | AL50: 0 | AM50: 0.0668 | AN50: 0.0094 | AO50: 0.0738 | AP50: 13.9515 | AQ50: 0 | AR50: 0 | AS50: 0.0047 | AT50: 0.0005 | AU50: 0.0043 | AV50: 0.5645 | AW50: 0
A51: Other vegetables, no fat | B51: 0.2424 | C51: 0 | D51: 0.8222 | E51: 0.0311 | J51: 20.6201 | K51: 1.6208 | L51: 0.0578 | M51: 41.741 | N51: 1.5476 | O51: 36.4832 | P51: 0.5888 | Q51: 14.6587 | R51: 0.5734 | S51: 38.8392 | T51: 189.0055 | U51: 0.0536 | V51: 114.8776 | W51: 0.057 | X51: 0.0352 | Y51: 0.0894 | Z51: 11.3729 | AA51: 0.1485 | AB51: 30.5997 | AC51: 0.4065 | AD51: 1.3863 | AE51: 0.3019 | AF51: 7.878 | AG51: 30.5866 | AH51: 7.464 | AI51: 2.1408 | AJ51: 0.0044 | AK51: 0.6477 | AL51: 0.0113 | AM51: 0 | AN51: 0.0435 | AO51: 0.0222 | AP51: 3.1671 | AQ51: 0.0008 | AR51: 0.0114 | AS51: 0.0065 | AT51: 0.0007 | AU51: 0.1383 | AV51: 0.4916 | AW51: 0.0113
A52: Tomatoes, no fat | B52: 0.2783 | C52: 0.1939344949 | D52: 0.2664 | E52: 0.5471 | J52: 10.6058 | K52: 0.4564 | L52: 0.0688 | M52: 21.8295 | N52: 1.0497 | O52: 14.8765 | P52: 0.3434 | Q52: 10.3741 | R52: 0.6177 | S52: 23.4407 | T52: 218.8248 | U52: 0.0229 | V52: 73.7465 | W52: 0.0407 | X52: 0.0075 | Y52: 0.0796 | Z52: 13.3719 | AA52: 0.5542 | AB52: 39.5385 | AC52: 0.178 | AD52: 1.3433 | AE52: 0.1232 | AF52: 3.8829 | AG52: 17.6198 | AH52: 3.0632 | AI52: 0.6868 | AJ52: 0.0221 | AK52: 0.5083 | AL52: 0.0001 | AM52: 0.0017 | AN52: 0.0074 | AO52: 0.0025 | AP52: 0.9775 | AQ52: 0.0001 | AR52: 0.0001 | AS52: 0.0016 | AT52: 0.0002 | AU52: 0.0016 | AV52: 0.5051 | AW52: 0.0001
A53: Mixed vegetables | B53: 0.2046 | C53: 0 | D53: 0.1692 | E53: 1.1814 | J53: 48.3443 | K53: 12.4 | L53: 0.0604 | M53: 113.8409 | N53: 1.8584 | O53: 25.2053 | P53: 0.6971 | Q53: 14.3688 | R53: 0.6711 | S53: 54.2827 | T53: 205.4157 | U53: 0.0794 | V53: 109.5667 | W53: 0.0651 | X53: 0.0559 | Y53: 0.1249 | Z53: 16.9187 | AA53: 0.9372 | AB53: 134.9056 | AC53: 0.3605 | AD53: 26.6431 | AE53: 3.1358 | AF53: 9.7884 | AG53: 39.8273 | AH53: 68.831 | AI53: 14.2853 | AJ53: 0.0927 | AK53: 0.6535 | AL53: 0.0047 | AM53: 0.0683 | AN53: 0.0651 | AO53: 5.9045 | AP53: 24.6008 | AQ53: 0.016 | AR53: 0.0151 | AS53: 0.099 | AT53: 0.0012 | AU53: 0.0741 | AV53: 0.4652 | AW53: 0.0047
A54: Mixed vegetables, no fat | B54: 0.1899 | C54: 0.6292955389 | D54: 0.0317 | E54: 0.333 | J54: 18.6958 | K54: 0.4975 | L54: 0.081 | M54: 53.3892 | N54: 2.3394 | O54: 22.883 | P54: 0.7605 | Q54: 14.5809 | R54: 0.8538 | S54: 42.8003 | T54: 195.1259 | U54: 0.0608 | V54: 142.7405 | W54: 0.0857 | X54: 0.0119 | Y54: 0.1082 | Z54: 12.2089 | AA54: 0.3928 | AB54: 134.2785 | AC54: 0.4521 | AD54: 1.1833 | AE54: 0.2209 | AF54: 9.5527 | AG54: 39.4192 | AH54: 7.8385 | AI54: 2.3933 | AJ54: 0.0924 | AK54: 0.5832 | AL54: 0 | AM54: 0 | AN54: 0.0185 | AO54: 0.3994 | AP54: 1.9178 | AQ54: 0 | AR54: 0.031 | AS54: 0.1113 | AT54: 0 | AU54: 0.2707 | AV54: 0.1701 | AW54: 0
A55: Fats and oils | B55: 0.2745 | C55: 0 | D55: 0.3031 | E55: 0.0057 | J55: 27.0141 | K55: 11.8849 | L55: 0.0912 | M55: 224.4083 | N55: 0.8274 | O55: 8.2173 | P55: 0.5714 | Q55: 11.0177 | R55: 0.6248 | S55: 34.0069 | T55: 160.0783 | U55: 0.1125 | V55: 742.7267 | W55: 0.0424 | X55: 0.0763 | Y55: 0.0965 | Z55: 6.8435 | AA55: 2.0971 | AB55: 93.1411 | AC55: 0.2688 | AD55: 67.125 | AE55: 8.7362 | AF55: 6.8527 | AG55: 39.8079 | AH55: 184.6661 | AI55: 40.4767 | AJ55: 0.0883 | AK55: 0.2555 | AL55: 0.0012 | AM55: 0.0325 | AN55: 0.0413 | AO55: 15.2235 | AP55: 52.4779 | AQ55: 0 | AR55: 0.0004 | AS55: 0 | AT55: 0 | AU55: 0 | AV55: 0.2551 | AW55: 0.0012
A56: Coffee | B56: 0.0193 | C56: 0 | D56: 6.8496 | E56: 0.7192 | J56: 1.3482 | K56: 0.0256 | L56: 0.0053 | M56: 6.9033 | N56: 0.0018 | O56: 2.5679 | P56: 0.0188 | Q56: 2.5716 | R56: 0.033 | S56: 2.4357 | T56: 40.2211 | U56: 0.0295 | V56: 2.0724 | W56: 0.0005 | X56: 0.001 | Y56: 0.0008 | Z56: 0.001 | AA56: 0.0102 | AB56: 0.0881 | AC56: 0.0147 | AD56: 0.0078 | AE56: 0.0017 | AF56: 0.3663 | AG56: 4.915 | AH56: 3.4807 | AI56: 0.0606 | AJ56: 0.0005 | AK56: 0 | AL56: 0 | AM56: 0.0011 | AN56: 0 | AO56: 0.0002 | AP56: 4.0852 | AQ56: 0.0002 | AR56: 0 | AS56: 0 | AT56: 0 | AU56: 0 | AV56: 0 | AW56: 0
A57: Soft drinks | B57: 0.0644 | C57: 0 | D57: 1.1734 | E57: 0.0031 | J57: 4.9007 | K57: 0.0097 | L57: 0.0119 | M57: 41.7277 | N57: 0.0119 | O57: 0.424 | P57: 0.0528 | Q57: 1.2733 | R57: 0.017 | S57: 6.6893 | T57: 5.7352 | U57: 0.0032 | V57: 8.2576 | W57: 0.0044 | X57: 0.0016 | Y57: 0.0034 | Z57: 3.4793 | AA57: 0.0054 | AB57: 0.8218 | AC57: 0.0243 | AD57: 0.0103 | AE57: 0.0045 | AF57: 0.1428 | AG57: 42.807 | AH57: 0.0734 | AI57: 0.0293 | AJ57: 0.0004 | AK57: 0 | AL57: 0.0137 | AM57: 0.0001 | AN57: 0.001 | AO57: 0.0006 | AP57: 39.3343 | AQ57: 0 | AR57: 0 | AS57: 0 | AT57: 0 | AU57: 0 | AV57: 0 | AW57: 0.0137
A58: Low calorie soft drinks | B58: 0.0547 | C58: 0 | D58: 0.6564 | E58: 0.0063 | J58: 3.6399 | K58: 0 | L58: 0.0131 | M58: 5.8772 | N58: 0.0064 | O58: 0.2697 | P58: 0.0353 | Q58: 1.2693 | R58: 0.0233 | S58: 8.6792 | T58: 7.8581 | U58: 0.015 | V58: 10.4531 | W58: 0.0085 | X58: 0.0004 | Y58: 0.0019 | Z58: 2.0799 | AA58: 0.0164 | AB58: 0.037 | AC58: 0.0197 | AD58: 0.0087 | AE58: 0.0018 | AF58: 0.342 | AG58: 5.3886 | AH58: 0.0211 | AI58: 0.0035 | AJ58: 0.0006 | AK58: 0 | AL58: 0.0111 | AM58: 0 | AN58: 0 | AO58: 0 | AP58: 2.6603 | AQ58: 0 | AR58: 0 | AS58: 0 | AT58: 0 | AU58: 0 | AV58: 0 | AW58: 0.0111
A59: Sugars | B59: 0.4364 | C59: 0 | D59: 0.1878 | E59: 0.0006 | J59: 30.7712 | K59: 2.3339 | L59: 0.1133 | M59: 318.5985 | N59: 0.9453 | O59: 6.2918 | P59: 0.501 | Q59: 17.0975 | R59: 0.4142 | S59: 45.6826 | T59: 116.075 | U59: 0.0596 | V59: 69.7042 | W59: 0.026 | X59: 0.0741 | Y59: 0.0267 | Z59: 3.8191 | AA59: 0.4195 | AB59: 6.6689 | AC59: 0.4651 | AD59: 4.693 | AE59: 0.1816 | AF59: 7.5823 | AG59: 266.6488 | AH59: 55.7747 | AI59: 25.4751 | AJ59: 0.1422 | AK59: 0.0001 | AL59: 0.036 | AM59: 0.0539 | AN59: 0.1592 | AO59: 3.1825 | AP59: 225.3176 | AQ59: 0.0058 | AR59: 0 | AS59: 0 | AT59: 0 | AU59: 0 | AV59: 0 | AW59: 0.036
A60: Lower Limit | J60: 1200 | K60: 0 | L60: 0.9 | M60: 1800 | N60: 25.2 | O60: 400 | P60: 8 | Q60: 320 | R60: 14 | S60: 700 | T60: 4700 | U60: 1.1 | V60: 0 | W60: 1.1 | X60: 2.4 | Y60: 1.5 | Z60: 75 | AA60: 15 | AB60: 700 | AC60: 8 | AD60: =0.05*M60 -> 90 | AE60: =0.006*M60 -> 10.8 | AF60: =0.1*M60 -> 180 | AG60: =0.45*M60 -> 810 | AH60: =0.2*M60 -> 360 | AI60: 0 | AJ60: 6 | AK60: 2.5 | AL60: 1.5 | AM60: 0 | AN60: 5 | AO60: 24 | AP60: 0 | AQ60: 3 | AR60: 0.43 | AS60: 0.29 | AT60: 0.43 | AU60: 0.43 | AV60: 0.93 | AW60: 0.75
A61: Upper Limit | J61: 2500 | K61: 299.99 | L61: 10 | M61: 1916 | N61: 10000000000 | O61: 1000 | P61: 45 | Q61: 10000000000 | R61: 35 | S61: 3000 | T61: 10000000000 | U61: 10000000000 | V61: 2201 | W61: 10000000000 | X61: 10000000000 | Y61: 100 | Z61: 2000 | AA61: 1000 | AB61: 3000 | AC61: 40 | AD61: =0.1*M61 -> 191.6 | AE61: =0.012*M61 -> 22.992 | AF61: =0.35*M61 -> 670.6 | AG61: =0.65*M61 -> 1245.4 | AH61: =0.35*M61 -> 670.6 | AI61: =0.1*M61 -> 191.6 | AJ61: 10000000000 | AK61: 10000000000 | AL61: 10000000000 | AM61: 1 | AN61: 10000000000 | AO61: 10000000000 | AP61: 195 | AQ61: 10000000000 | AR61: 10000000000 | AS61: 10000000000 | AT61: 10000000000 | AU61: 10000000000 | AV61: 10000000000 | AW61: 10000000000
A62: Sum of Constraints | J62: =SUMPRODUCT($C$2:$C$59,J2:J59) -> 1200 | K62: =SUMPRODUCT($C$2:$C$59,K2:K59) -> 55.02073393 | L62: 2.536951164 | M62: 1916 | N62: 53.65308514 | O62: 999.9999997 | P62: 19.20317096 | Q62: 720.6744055 | R62: 27.13415683 | S62: 1751.125531 | T62: 4699.999999 | U62: 1.834100675 | V62: 2200.999996 | W62: 1.784044171 | X62: 2.400000029 | Y62: 3.150898065 | Z62: 446.707205 | AA62: 22.04732105 | AB62: 3000.000009 | AC62: 13.57131676 | AD62: 157.0292725 | AE62: 13.12706569 | AF62: 332.3597124 | AG62: 1053.948384 | AH62: 631.9364275 | AI62: 161.2587346 | AJ62: 5.999999994 | AK62: 8.814301834 | AL62: 1.500000041 | AM62: 1.000000004 | AN62: 6.172512889 | AO62: 24.00000006 | AP62: 194.9999997 | AQ62: 5.286998395 | AR62: 5.955066149 | AS62: 1.070539975 | AT62: 0.4300000001 | AU62: 0.4300000013 | AV62: 0.9300000374 | AW62: 1.500000041
AC63: Upper | AD63: Bound | AE63: under | AF63: 1800 | AG63: Cal. = | AH63: 630
M64: 1950

Sheet Procedure
A1: Steps
A3: All information provided in the Box account
A5: Model built using formulas from example models
A7: Limits provided in account failed to bind dairy servings to only 1 per day, so I had to change lower limit to zero and upper to one
A9: After changing bounds and some sensitivity testing (.5 intervals, 1-10) Males 71+ ran smoothly
A11: Females did not.
A13: I changed the female energy upper limit to 2200.
A15: Additionally, macronutrients (columns AD-AI) for Females had lower limits set at zero, and both upper and lower had to be recalculated to ensure solutions were within them. It should be noted the increased calories described above also raised the upper limits on macronutrients, but only fats (2.5 above) exceeded the upper limits allowed under 1800 calorie upper limits.
B16: used multiplier table provided by dan
A18: After recalculations, female model ran smoothly
A20: Multisolver run to find optimal solution
